Workbook

Sheet Compte de résultats (hidden)
A1: Comptes de résultats par natures | E1: 2021 | F1: 2020 | G1: Variation
A2: Comptes consolidés de l'ensemble des communes et par district | E2: ='[1]Base de données pop.'!C2 -> 947 | F2: 923 | G2: =E2-F2 -> 24
E3: Boécourt | F3: Boécourt | G3: Boécourt
A4: 3 | D4: Charges | E4: =E5+E15+E27+E31+E39+E43+E53+E56+E64 -> 3,547,928.06 | F4: =F5+F15+F27+F31+F39+F43+F53+F56+F64 -> 4,023,666.78 | G4: =E4-F4 -> -475,738.72
B5: 30 | D5: Charges du personnel | E5: =E6+E7+E8+E9+E10+E11+E12+E13 -> 450,690.30 | F5: =F6+F7+F8+F9+F10+F11+F12+F13 -> 469,778.30 | G5: =E5-F5 -> -19,088.00
C6: 300 | D6: Autorités et commissions | E6: 40,562.00 | F6: 39,726.80 | G6: =E6-F6 -> 835.20
C7: 301 | D7: Personnel administratif et d'exploitation | E7: 342,108.95 | F7: 353,234.50 | G7: =E7-F7 -> -11,125.55
C8: 302 | D8: Enseignants | E8: 0.00 | F8: 0.00 | G8: 0.00
C9: 303 | D9: Personnel temporaire administratif et d'exploitation | E9: 0.00 | F9: 0.00 | G9: 0.00
C10: 304 | D10: Allocations et indemnités | E10: 0.00 | F10: 0.00 | G10: 0.00
C11: 305 | D11: Charges de l'employeur | E11: 67,257.35 | F11: 71,655.30 | G11: -4,397.95
C12: 306 | D12: Prestations sociales de l'employeur | E12: 0.00 | F12: 0.00 | G12: 0.00
C13: 309 | D13: Autres charges du personnel | E13: 762.00 | F13: 5,161.70 | G13: -4,399.70
B15: 31 | D15: Charges de biens et de services et autres charges d'exploitation | E15: =E16+E17+E18+E19+E20+E21+E22+E23+E24+E25 -> 549,823.39 | F15: =F16+F17+F18+F19+F20+F21+F22+F23+F24+F25 -> 519,678.63 | G15: =E15-F15 -> 30,144.76
C16: 310 | D16: Charges de matériel et de marchandises | E16: 82,979.55 | F16: 55,216.90 | G16: 27,762.65
C17: 311 | D17: Immobilisations ne pouvant être portées à l'actif | E17: 30,604.40 | F17: 56,305.05 | G17: -25,700.65
C18: 312 | D18: Alimentations et éliminations des biens-fonds du PA | E18: 83,786.70 | F18: 66,682.35 | G18: 17,104.35
C19: 313 | D19: Prestations de services et honoraires | E19: 137,664.14 | F19: 79,418.28 | G19: 58,245.86
C20: 314 | D20: Gros entretien et entretien courtant du PA | E20: 183,317.00 | F20: 115,774.20 | G20: 67,542.80
C21: 315 | D21: Entretien des biens mobiliers et des immobilisations corporelles du PA | E21: 49,935.55 | F21: 33,160.45 | G21: 16,775.10
C22: 316 | D22: Loyers - crédits-bails (leasing) - baux à fermes - taxes d'utilisation | E22: 3,877.20 | F22: 3,877.20 | G22: 0.00
C23: 317 | D23: Indemnités et dédommagements | E23: 23,606.65 | F23: 17,503.35 | G23: 6,103.30
C24: 318 | D24: Réévaluations de créances | E24: -46,864.30 | F24: 89,412.95 | G24: -136,277.25
C25: 319 | D25: Divers charges d'exploitation | E25: 916.50 | F25: 2,327.90 | G25: -1,411.40
B27: 33 | D27: Amortissements du patrimoine administratif | E27: =E28+E29 -> 282,130.74 | F27: =F28+F29 -> 505,358.98 | G27: -223,228.24
C28: 330 | D28: Amortissements des immobilisations corporelles du PA | E28: 282,130.74 | F28: 472,574.35 | G28: -190,443.61
C29: 332 | D29: Amortissements des immobilisations incorporelles du PA | E29: 0.00 | F29: 32,784.63 | G29: -32,784.63
B31: 34 | D31: Charges financières | E31: =E32+E33+E34+E35+E36+E37 -> 38,934.65 | F31: =F32+F33+F34+F35+F36+F37 -> 37,127.64 | G31: 1,807.01
C32: 340 | D32: Charges d'intérets | E32: 38,934.65 | F32: 37,127.64 | G32: 1,807.01
C33: 341 | D33: Pertes sur les placements financiers et les immobilisations du PF | E33: 0.00 | F33: 0.00 | G33: 0.00
C34: 342 | D34: Frais d'acquisitions des capitaux et frais administratifs | E34: 0.00 | F34: 0.00 | G34: 0.00
C35: 343 | D35: Charges pour les biens-fonds du PF | E35: 0.00 | F35: 0.00 | G35: 0.00
C36: 344 | D36: Réévaluations des immobilisations du PF | E36: 0.00 | F36: 0.00 | G36: 0.00
C37: 349 | D37: Autres charges financières | E37: 0.00 | F37: 0.00 | G37: 0.00
B39: 35 | D39: Attributions aux financements spéciaux des capitaux de tiers | E39: =E40+E41 -> 16,978.75 | F39: =F40+F41 -> 21,282.55 | G39: -4,303.80
C40: 350 | D40: Attributions aux financements spéciaux des capitaux de tiers | E40: 0.00 | F40: 0.00 | G40: 0.00
C41: 351 | D41: Attributions aux financements spéciaux du capital propres | E41: 16,978.75 | F41: 21,282.55 | G41: -4,303.80
B43: 36 | D43: Charges de transferts | E43: =E44+E45+E46+E47+E48+E49+E50+E51 -> 2,209,370.23 | F43: =F44+F45+F46+F47+F48+F49+F50+F51 -> 2,101,514.68 | G43: 107,855.55
C44: 360 | D44: Parts de revenus destinés à des collectivités publiques | E44: 4,379.60 | F44: 1,410.10 | G44: 2,969.50
C45: 361 | D45: Dédommagements aux collectivités publiques | E45: 1,642,996.43 | F45: 1,617,649.88 | G45: 25,346.55
C46: 362 | D46: Péréquation financière et compensation de charges | E46: 22,114.00 | F46: 0.00 | G46: 22,114.00
C47: 363 | D47: Subventions à des collectivités publiques et des tiers | E47: 531,555.20 | F47: 474,228.70 | G47: 57,326.50
C48: 364 | D48: Réévaluations des prets du PA | E48: 0.00 | F48: 0.00 | G48: 0.00
C49: 365 | D49: Réévaluations des participations du PA | E49: 0.00 | F49: 0.00 | G49: 0.00
C50: 366 | D50: Amortissements des subventions des investissements | E50: 0.00 | F50: 0.00 | G50: 0.00
C51: 369 | D51: Différentes charges de transfert à des collectivités publiques et tiers | E51: 8,325.00 | F51: 8,226.00 | G51: 99.00
B53: 37 | D53: Subventions à redistribuer | E53: =E54 -> 0.00 | F53: =F54 -> 0.00 | G53: 0.00
C54: 370 | D54: Subventions à redistribuer à des collectivités publiques et des tiers | E54: 0.00 | F54: 0.00 | G54: 0.00
G55: 0.00
B56: 38 | D56: Charges extraordinaires | E56: =E57+E58+E59+E60+E61+E62 -> 0.00 | F56: =F57+F58+F59+F60+F61+F62 -> 320,000.00 | G56: -320,000.00
C57: 380 | D57: Charges extraordinaires du personnel administratif et d'exploitation | E57: 0.00 | F57: 0.00 | G57: 0.00
C58: 381 | D58: charges extraordinaires de biens et de services d'exploitation | E58: 0.00 | F58: 0.00 | G58: 0.00
C59: 384 | D59: Charges extraordinaires financières et comptables | E59: 0.00 | F59: 0.00 | G59: 0.00
C60: 385 | D60: Attributions extraordinaires aux financements spéciaux | E60: 0.00 | F60: 0.00 | G60: 0.00
C61: 386 | D61: Charges de transfert extraordinaires au collectivités et aux tiers | E61: 0.00 | F61: 0.00 | G61: 0.00
C62: 389 | D62: Attributions au capital propre | E62: 0.00 | F62: 320,000.00 | G62: -320,000.00
B64: 39 | D64: Imputations internes | E64: =E65+E66+E67+E68+E69+E70+E71+E72 -> 0.00 | F64: =F65+F66+F67+F68+F69+F70+F71+F72 -> 48,926.00 | G64: -48,926.00
C65: 390 | D65: Approvisionnement en matériel et en marchandises | E65: 0.00 | F65: 0.00 | G65: 0.00
C66: 391 | D66: Prestations de services | E66: 0.00 | F66: 48,926.00 | G66: -48,926.00
C67: 392 | D67: Loyer, baux à ferme et frais d'utilisation | E67: 0.00 | F67: 0.00 | G67: 0.00
C68: 393 | D68: Frais administratifs et d'exploitation | E68: 0.00 | F68: 0.00 | G68: 0.00
C69: 394 | D69: Intérêts et charges financières théoriques | E69: 0.00 | F69: 0.00 | G69: =E69-F69 -> 0.00
C70: 395 | D70: Amortissements planifiés et non planifiés du PA | E70: 0.00 | F70: 0.00 | G70: 0.00
C71: 398 | D71: Virements comptabiles | E71: 0.00 | F71: 0.00 | G71: 0.00
C72: 399 | D72: Autres imputations internes | E72: 0.00 | F72: 0.00 | G72: 0.00
A75: 4 | D75: Revenus | E75: =E76+E82+E88+E99+E105+E117+E121+E128+E131+E140 -> 3,592,856.16 | F75: =F76+F82+F88+F99+F105+F117+F121+F128+F131+F140 -> 4,361,735.78 | G75: -768,879.62
B76: 40 | D76: Revenus fiscaux | E76: =E77+E78+E79+E80 -> 2,484,648.45 | F76: =F77+F78+F79+F80 -> 3,330,906.65 | G76: -846,258.20
C77: 400 | D77: Impôts directs des personnes physiques | E77: 2,089,448.20 | F77: 2,399,050.60 | G77: -309,602.40
C78: 401 | D78: Impôts directs des personnes morales | E78: 99,854.85 | F78: 186,863.75 | G78: -87,008.90
C79: 402 | D79: Autres impôts directs | E79: 281,123.40 | F79: 731,404.75 | G79: -450,281.35
C80: 403 | D80: Impôts sur la possession et les dépenses | E80: 14,222.00 | F80: 13,587.55 | G80: 634.45
B82: 41 | D82: Revenus de patentes et de concessions | E82: =E83+E84+E85+E86 -> 0.00 | F82: =F83+F84+F85+F86 -> 0.00 | G82: 0.00
C83: 410 | D83: Revenus de patentes | E83: 0.00 | F83: 0.00 | G83: 0.00
C84: 411 | D84: Revenus de la Banque Nationale | E84: 0.00 | F84: 0.00 | G84: 0.00
C85: 412 | D85: Revenus des concessions | E85: 0.00 | F85: 0.00 | G85: 0.00
C86: 413 | D86: Parts des revenus de loterie et paris | E86: 0.00 | F86: 0.00 | G86: 0.00
B88: 42 | D88: Taxes | E88: =E89+E90+E91+E92+E93+E94+E95+E96+E97 -> 619,770.70 | F88: =F89+F90+F91+F92+F93+F94+F95+F96+F97 -> 643,920.73 | G88: -24,150.03
C89: 420 | D89: Taxes d'exemption et de compensation | E89: 38,676.55 | F89: 36,109.75 | G89: 2,566.80
C90: 421 | D90: Emoluments administratif | E90: 18,730.75 | F90: 11,893.75 | G90: 6,837.00
C91: 422 | D91: Taxes et émoluments hospitaliers et médico-sociaux et foyers | E91: 0.00 | F91: 0.00 | G91: 0.00
C92: 423 | D92: Frais d'écolage | E92: 2,720.00 | F92: 4,080.00 | G92: -1,360.00
C93: 424 | D93: Taxes d'utilisation et de prestation de services | E93: 517,639.85 | F93: 544,175.30 | G93: -26,535.45
C94: 425 | D94: Revenus des ventes | E94: 10,532.15 | F94: 7,424.65 | G94: 3,107.50
C95: 426 | D95: remboursements | E95: 31,271.40 | F95: 40,017.28 | G95: -8,745.88
C96: 427 | D96: Amendes | E96: 200.00 | F96: 220.00 | G96: -20.00
C97: 429 | D97: Autres taxes et compensations | E97: 0.00 | F97: 0.00 | G97: 0.00
B99: 43 | D99: Revenus divers | E99: =E100+E101+E102+E103 -> 0.00 | F99: =F100+F101+F102+F103 -> 0.00 | G99: 0.00
C100: 430 | D100: Revenus divers d'exploitation | E100: 0.00 | F100: 0.00 | G100: 0.00
C101: 431 | D101: Inscriptions de prestations propres portées à l'actif | E101: 0.00 | F101: 0.00 | G101: 0.00
C102: 432 | D102: Variation de stock | E102: 0.00 | F102: 0.00 | G102: 0.00
C103: 439 | D103: Autres revenus divers | E103: 0.00 | F103: 0.00 | G103: 0.00
B105: 44 | D105: Revenus financiers | E105: =E106+E107+E108+E109+E110+E111+E112+E113+E114+E115 -> 102,093.46 | F105: =F106+F107+F108+F109+F110+F111+F112+F113+F114+F115 -> 47,757.15 | G105: 54,336.31
C106: 440 | D106: Revenus des intérets | E106: 17,852.91 | F106: 23,418.30 | G106: -5,565.39
C107: 441 | D107: Gains réalisés du PF | E107: 0.00 | F107: 0.00 | G107: 0.00
C108: 442 | D108: Revenus de participations du PF | E108: 39.00 | F108: 60.10 | G108: -21.10
C109: 443 | D109: Revenus des biens-fonds, des bâtiments et immeubles du PF | E109: 23,061.50 | F109: 22,991.50 | G109: 70.00
C110: 444 | D110: Réévaluations des immobilisations du PF | E110: 59,653.15 | F110: 0.00 | G110: 59,653.15
C111: 445 | D111: Revenus financiers de prêts et de participation du PA | E111: 0.00 | F111: 0.00 | G111: 0.00
C112: 446 | D112: Revenus financiers d'entreprises publiques | E112: 0.00 | F112: 0.00 | G112: 0.00
C113: 447 | D113: Revenus des biens-fonds, des bâtiments et immeubles du PA | E113: 1,486.90 | F113: 1,287.25 | G113: 199.65
C114: 448 | D114: Revenus des biens-fonds loués | E114: 0.00 | F114: 0.00 | G114: 0.00
C115: 449 | D115: Autres revenus financiers | E115: 0.00 | F115: 0.00 | G115: 0.00
B117: 45 | D117: Prélèvements sur les financements spéciaux | E117: =E118+E119 -> 46,777.40 | F117: =F118+F119 -> 2,612.45 | G117: 44,164.95
C118: 450 | D118: Prélèvements sur les financements spéciaux des capitaux de tiers | E118: 4,212.00 | F118: 2,612.45 | G118: 1,599.55
C119: 451 | D119: Prélèvements sur les financements spéciaux du capital propre | E119: 42,565.40 | F119: 0.00 | G119: 42,565.40
B121: 46 | D121: Revenus de transfert | E121: =E122+E123+E124+E125+E126 -> 339,566.15 | F121: =F122+F123+F124+F125+F126 -> 287,612.80 | G121: 51,953.35
C122: 460 | D122: Parts à des revenus des collectivités publiques | E122: 8,028.00 | F122: 4,183.00 | G122: 3,845.00
C123: 461 | D123: Dédommagements des collectivités publiques | E123: 275,266.75 | F123: 145,642.25 | G123: 129,624.50
C124: 462 | D124: Péréquation financière et compensation de charges | E124: 0.00 | F124: 93,242.00 | G124: -93,242.00
C125: 463 | D125: Subventions de collectivités publiques et de tiers | E125: 56,165.50 | F125: 44,349.15 | G125: 11,816.35
C126: 469 | D126: Différents revenus et transferts de collectivités publiques et de tiers | E126: 105.90 | F126: 196.40 | G126: -90.50
B128: 47 | D128: Subventions à redistribuer | E128: =E129 -> 0.00 | F128: =F129 -> 0.00 | G128: 0.00
C129: 470 | D129: Subventions à redistribuer des collectivités publiques et de tiers | E129: 0.00 | F129: 0.00 | G129: 0.00
B131: 48 | D131: Revenus extraordinaires | E131: =E132+E133+E134+E135+E136+E137+E138 -> 0.00 | F131: =F132+F133+F134+F135+F136+F137+F138 -> 0.00 | G131: 0.00
C132: 481 | D132: Revenus extraordinaires de patentes et de concessions | E132: 0.00 | F132: 0.00 | G132: 0.00
C133: 482 | D133: Contributions extraordinaires | E133: 0.00 | F133: 0.00 | G133: =E133-F133 -> 0.00
C134: 483 | D134: Revenus divers extraordinaires | E134: 0.00 | F134: 0.00 | G134: 0.00
C135: 484 | D135: Revenus financiers extraordinaires | E135: 0.00 | F135: 0.00 | G135: 0.00
C136: 485 | D136: Prélèvements extraordinaires sur les financements spéciaux | E136: 0.00 | F136: 0.00 | G136: 0.00
C137: 486 | D137: Parts aux revenus extraordinaires de transferts des collectivités et tiers | E137: 0.00 | F137: 0.00 | G137: 0.00
C138: 489 | D138: Prélèvement sur le capital propre | E138: 0.00 | F138: 0.00 | G138: 0.00
B140: 49 | D140: Imputations internes | E140: =E141+E142+E143+E144+E145+E146+E147+E148 -> 0.00 | F140: =F141+F142+F143+F144+F145+F146+F147+F148 -> 48,926.00 | G140: -48,926.00
C141: 490 | D141: Approvisionnement en matériel et en marchandises | E141: 0.00 | F141: 0.00 | G141: 0.00
C142: 491 | D142: Prestations de services | E142: 0.00 | F142: 48,926.00 | G142: -48,926.00
C143: 492 | D143: Fermages, loyers et frais d'utilisation | E143: 0.00 | F143: 0.00 | G143: 0.00
C144: 493 | D144: Frais administratifs et d'exploitations | E144: 0.00 | F144: 0.00 | G144: 0.00
C145: 494 | D145: Intérêts et charges financières théoriques | E145: 0.00 | F145: 0.00 | G145: 0.00
C146: 495 | D146: Amortissements planifiés et non planifiés | E146: 0.00 | F146: 0.00 | G146: 0.00
C147: 498 | D147: Virements comptables | E147: 0.00 | F147: 0.00 | G147: 0.00
C148: 499 | D148: Autres imputations internes | E148: 0.00 | F148: 0.00 | G148: 0.00
A152: 9 | D152: Comptes de clôture
B153: 90 | D153: Clôture du compte de résultats | E153: =E154+E155 -> 44,928.10 | F153: =F154+F155 -> 338,069.00 | G153: -293,140.90
C154: 900 | D154: Compte général (+ / -) | E154: -157,625.18 | F154: 6,015.15 | G154: -163,640.33
C155: 901 | D155: Financements spéciaux (+ / -) | E155: 202,553.28 | F155: 332,053.85 | G155: -129,500.57
D157: Résultat global | E157: =E154+E155 -> 44,928.10 | F157: =F154+F155 -> 338,069.00 | G157: -293,140.90
A162: Comptes de résultats par natures | E162: 2021 | F162: 2020 | G162: Variation
A163: Comptes consolidés de l'ensemble des communes et par district | E163: 265 | F163: 270 | G163: =E163-F163 -> -5
E164: Bourrignon | F164: Bourrignon | G164: Bourrignon
A165: 3 | D165: Charges | E165: =E166+E176+E188+E192+E200+E204+E214+E217+E225 -> 1,104,222.59 | F165: 1,024,476.59 | G165: =E165-F165 -> 79,746.00
B166: 30 | D166: Charges du personnel | E166: =E167+E168+E169+E170+E171+E172+E173+E174 -> 53,889.40 | F166: 52,868.70 | G166: =E166-F166 -> 1,020.70
C167: 300 | D167: Autorités et commissions | E167: 21,005.75 | F167: 20,005.00 | G167: 1,000.75
C168: 301 | D168: Personnel administratif et d'exploitation | E168: 29,533.75 | F168: 29,497.50 | G168: 36.25
C169: 302 | D169: Enseignants | E169: 0.00 | F169: 0.00 | G169: 0.00
C170: 303 | D170: Personnel temporaire administratif et d'exploitation | E170: 0.00 | F170: 0.00 | G170: 0.00
C171: 304 | D171: Allocations et indemnités | E171: 0.00 | F171: 0.00 | G171: 0.00
C172: 305 | D172: Charges de l'employeur | E172: 3,301.80 | F172: 3,196.70 | G172: 105.10
C173: 306 | D173: Prestations sociales de l'employeur | E173: 0.00 | F173: 0.00 | G173: 0.00
C174: 309 | D174: Autres charges du personnel | E174: 48.10 | F174: 169.50 | G174: -121.40
B176: 31 | D176: Charges de biens et de services et autres charges d'exploitation | E176: =E177+E178+E179+E180+E181+E182+E183+E184+E185+E186 -> 254,518.51 | F176: 202,592.20 | G176: =E176-F176 -> 51,926.31
C177: 310 | D177: Charges de matériel et de marchandises | E177: 19,047.05 | F177: 17,773.20 | G177: 1,273.85
C178: 311 | D178: Immobilisations ne pouvant être portées à l'actif | E178: 6,200.00 | F178: 3,401.30 | G178: 2,798.70
C179: 312 | D179: Alimentations et éliminations des biens-fonds du PA | E179: 46,861.55 | F179: 52,326.50 | G179: -5,464.95
C180: 313 | D180: Prestations de services et honoraires | E180: 93,116.79 | F180: 80,937.60 | G180: 12,179.19
C181: 314 | D181: Gros entretien et entretien courtant du PA | E181: 55,885.55 | F181: 57,280.00 | G181: -1,394.45
C182: 315 | D182: Entretien des biens mobiliers et des immobilisations corporelles du PA | E182: 14,158.25 | F182: 13,144.00 | G182: 1,014.25
C183: 316 | D183: Loyers - crédits-bails (leasing) - baux à fermes - taxes d'utilisation | E183: 2,981.40 | F183: 2,836.05 | G183: 145.35
C184: 317 | D184: Indemnités et dédommagements | E184: 2,177.60 | F184: 1,752.40 | G184: 425.20
C185: 318 | D185: Réévaluations de créances | E185: 12,688.92 | F185: -26,908.85 | G185: 39,597.77
C186: 319 | D186: Divers charges d'exploitation | E186: 1,401.40 | F186: 50.00 | G186: 1,351.40
B188: 33 | D188: Amortissements du patrimoine administratif | E188: =E189+E190 -> 82,434.00 | F188: 79,584.00 | G188: =E188-F188 -> 2,850.00
C189: 330 | D189: Amortissements des immobilisations corporelles du PA | E189: 70,754.00 | F189: 67,904.00 | G189: 2,850.00
C190: 332 | D190: Amortissements des immobilisations incorporelles du PA | E190: 11,680.00 | F190: 11,680.00 | G190: 0.00
B192: 34 | D192: Charges financières | E192: =E193+E194+E195+E196+E197+E198 -> 47,203.63 | F192: 62,765.89 | G192: =E192-F192 -> -15,562.26
C193: 340 | D193: Charges d'intérets | E193: 37,718.33 | F193: 43,881.44 | G193: -6,163.11
C194: 341 | D194: Pertes sur les placements financiers et les immobilisations du PF | E194: 0.00 | F194: 0.00 | G194: 0.00
C195: 342 | D195: Frais d'acquisitions des capitaux et frais administratifs | E195: 0.00 | F195: 0.00 | G195: 0.00
C196: 343 | D196: Charges pour les biens-fonds du PF | E196: 9,485.30 | F196: 18,879.75 | G196: -9,394.45
C197: 344 | D197: Réévaluations des immobilisations du PF | E197: 0.00 | F197: 0.00 | G197: 0.00
C198: 349 | D198: Autres charges financières | E198: 0.00 | F198: 4.70 | G198: -4.70
B200: 35 | D200: Attributions aux financements spéciaux des capitaux de tiers | E200: =E201+E202 -> 15,022.35 | F200: 5,654.61 | G200: =E200-F200 -> 9,367.74
C201: 350 | D201: Attributions aux financements spéciaux des capitaux de tiers | E201: 0.00 | F201: 0.00 | G201: 0.00
C202: 351 | D202: Attributions aux financements spéciaux du capital propres | E202: 15,022.35 | F202: 5,654.61 | G202: 9,367.74
B204: 36 | D204: Charges de transferts | E204: =E205+E206+E207+E208+E209+E210+E211+E212 -> 627,387.05 | F204: 589,661.20 | G204: =E204-F204 -> 37,725.85
C205: 360 | D205: Parts de revenus destinés à des collectivités publiques | E205: 1,560.00 | F205: 1,400.00 | G205: 160.00
C206: 361 | D206: Dédommagements aux collectivités publiques | E206: 426,368.55 | F206: 415,740.25 | G206: 10,628.30
C207: 362 | D207: Péréquation financière et compensation de charges | E207: 6,240.00 | F207: 6,500.00 | G207: -260.00
C208: 363 | D208: Subventions à des collectivités publiques et des tiers | E208: 191,274.50 | F208: 164,166.95 | G208: 27,107.55
C209: 364 | D209: Réévaluations des prets du PA | E209: 0.00 | F209: 0.00 | G209: 0.00
C210: 365 | D210: Réévaluations des participations du PA | E210: 0.00 | F210: 0.00 | G210: 0.00
C211: 366 | D211: Amortissements des subventions des investissements | E211: 0.00 | F211: 0.00 | G211: 0.00
C212: 369 | D212: Différentes charges de transfert à des collectivités publiques et tiers | E212: 1,944.00 | F212: 1,854.00 | G212: 90.00
B214: 37 | D214: Subventions à redistribuer | E214: =E215 -> 0.00 | F214: 0.00 | G214: =E214-F214 -> 0.00
C215: 370 | D215: Subventions à redistribuer à des collectivités publiques et des tiers | E215: 0.00 | F215: 0.00 | G215: 0.00
G216: 0.00
B217: 38 | D217: Charges extraordinaires | E217: =E218+E219+E220+E221+E222+E223 -> 0.00 | F217: 0.00 | G217: 0.00
C218: 380 | D218: Charges extraordinaires du personnel administratif et d'exploitation | E218: 0.00 | F218: 0.00 | G218: 0.00
C219: 381 | D219: charges extraordinaires de biens et de services d'exploitation | E219: 0.00 | F219: 0.00 | G219: 0.00
C220: 384 | D220: Charges extraordinaires financières et comptables | E220: 0.00 | F220: 0.00 | G220: 0.00
C221: 385 | D221: Attributions extraordinaires aux financements spéciaux | E221: 0.00 | F221: 0.00 | G221: 0.00
C222: 386 | D222: Charges de transfert extraordinaires au collectivités et aux tiers | E222: 0.00 | F222: 0.00 | G222: 0.00
C223: 389 | D223: Attributions au capital propre | E223: 0.00 | F223: 0.00 | G223: 0.00
B225: 39 | D225: Imputations internes | E225: =E226+E227+E228+E229+E230+E231+E232+E233 -> 23,767.65 | F225: 31,349.99 | G225: =E225-F225 -> -7,582.34
C226: 390 | D226: Approvisionnement en matériel et en marchandises | E226: 200.00 | F226: 200.00 | G226: 0.00
C227: 391 | D227: Prestations de services | E227: 2,645.20 | F227: 6,201.55 | G227: -3,556.35
C228: 392 | D228: Loyer, baux à ferme et frais d'utilisation | E228: 0.00 | F228: 0.00 | G228: 0.00
C229: 393 | D229: Frais administratifs et d'exploitation | E229: 0.00 | F229: 0.00 | G229: 0.00
C230: 394 | D230: Intérêts et charges financières théoriques | E230: 20,922.45 | F230: 24,948.44 | G230: -4,025.99
C231: 395 | D231: Amortissements planifiés et non planifiés du PA | E231: 0.00 | F231: 0.00 | G231: 0.00
C232: 398 | D232: Virements comptabiles | E232: 0.00 | F232: 0.00 | G232: 0.00
C233: 399 | D233: Autres imputations internes | E233: 0.00 | F233: 0.00 | G233: 0.00
... 7499 more rows

Sheet Compte fonctionnel (hidden)
A1: Comptes de résultats par fonction | C1: 2021 | D1: 2020 | E1: Variation
A2: Comptes consolidés de l'ensemble des communes et par district | C2: 947 | D2: 923 | E2: =C2-D2 -> 24
C3: Boécourt | D3: Boécourt | E3: Boécourt
A4: 0 | B4: Administration générale | C4: =C5-C6 -> 352,459.14 | D4: =D5-D6 -> 386,762.43 | E4: =C4-D4 -> -34,303.29
B5: dont charges | C5: 366,239.79 | D5: 400,522.28 | E5: =C5-D5 -> -34,282.49
B6: dont revenus | C6: 13,780.65 | D6: 13,759.85 | E6: =C6-D6 -> 20.80
A8: 1 | B8: Ordre et sécurité publics - Défense | C8: =C9-C10 -> 30,922.40 | D8: =D9-D10 -> 26,900.25 | E8: =C8-D8 -> 4,022.15
B9: dont charges | C9: 91,775.90 | D9: 78,596.95 | E9: =C9-D9 -> 13,178.95
B10: dont revenus | C10: 60,853.50 | D10: 51,696.70 | E10: =C10-D10 -> 9,156.80
A12: 2 | B12: Formation | C12: =C13-C14 -> 1,300,540.04 | D12: =D13-D14 -> 1,212,290.86 | E12: 88,249.18
B13: dont charges | C13: 1,341,325.39 | D13: 1,241,073.39 | E13: 100,252.00
B14: dont revenus | C14: 40,785.35 | D14: 28,782.53 | E14: 12,002.82
A16: 3 | B16: Culture - Sports - Loisirs - Eglises | C16: =C17-C18 -> 21,519.00 | D16: =D17-D18 -> 21,824.00 | E16: -305.00
B17: dont charges | C17: 22,519.00 | D17: 21,824.00 | E17: 695.00
B18: dont revenus | C18: 1,000.00 | D18: 0.00 | E18: 1,000.00
A20: 4 | B20: Santé | C20: =C21-C22 -> 7,417.54 | D20: =D21-D22 -> 5,476.04 | E20: 1,941.50
B21: dont charges | C21: 7,417.54 | D21: 5,476.04 | E21: 1,941.50
B22: dont revenus | C22: 0.00 | D22: 0.00 | E22: 0.00
A24: 5 | B24: Prévoyance sociale | C24: =C25-C26 -> 743,888.30 | D24: =D25-D26 -> 756,178.05 | E24: -12,289.75
B25: dont charges | C25: 902,289.40 | D25: 829,374.60 | E25: 72,914.80
B26: dont revenus | C26: 158,401.10 | D26: 73,196.55 | E26: 85,204.55
A28: 6 | B28: Traffic - Transports - Télécommunications | C28: =C29-C30 -> 249,719.37 | D28: =D29-D30 -> 515,947.65 | E28: -266,228.28
B29: dont charges | C29: 328,958.07 | D29: 592,033.05 | E29: -263,074.98
B30: dont revenus | C30: 79,238.70 | D30: 76,085.40 | E30: 3,153.30
A32: 7 | B32: Protection de l'environnement - Aménagement du territoire | C32: =C33-C34 -> -177,793.18 | D32: =D33-D34 -> -240,238.62 | E32: 62,445.44
B33: dont charges | C33: 426,046.72 | D33: 402,978.18 | E33: 23,068.54
B34: dont revenus | C34: 603,839.90 | D34: 643,216.80 | E34: -39,376.90
A36: 8 | B36: Economie publique | C36: =C37-C38 -> 3,251.90 | D36: =D37-D38 -> 3,640.85 | E36: -388.95
B37: dont charges | C37: 59,795.05 | D37: 18,191.45 | E37: 41,603.60
B38: dont revenus | C38: 56,543.15 | D38: 14,550.60 | E38: 41,992.55
A40: 9 | B40: Finances - Impôts | C40: =C41-C42 -> -2,531,924.51 | D40: =D41-D42 -> -2,694,796.66 | E40: 162,872.15
B41: dont charges | C41: 204,114.48 | D41: 775,676.99 | E41: -571,562.51
B42: dont revenus | C42: 2,736,038.99 | D42: 3,470,473.65 | E42: -734,434.66
B44: Récapitulation générale | C44: =C4+C8+C12+C16+C20+C24+C28+C32+C36+C40 -> 0.00 | D44: -6,015.15 | E44: 6,015.15
B45: dont charges | C45: 3,750,481.34 | D45: 4,365,746.93 | E45: -615,265.59
B46: dont revenus | C46: 3,750,481.34 | D46: 4,371,762.08 | E46: -621,280.74
A51: Comptes de résultats par fonction 2021 | C51: 2021 | D51: 2020 | E51: Variation
A52: Comptes consolidés de l'ensemble des communes et par district | C52: 265 | D52: 270 | E52: =C52-D52 -> -5
C53: Bourrignon | D53: Bourrignon | E53: Bourrignon
A54: 0 | B54: Administration générale | C54: =C55-C56 -> 89,429.35 | D54: 78,487.05 | E54: =C54-D54 -> 10,942.30
B55: dont charges | C55: 97,655.85 | D55: 92,080.40 | E55: =C55-D55 -> 5,575.45
B56: dont revenus | C56: 8,226.50 | D56: 13,593.35 | E56: =C56-D56 -> -5,366.85
A58: 1 | B58: Ordre et sécurité publics - Défense | C58: =C59-C60 -> 6,305.35 | D58: -4,446.85 | E58: =C58-D58 -> 10,752.20
B59: dont charges | C59: 25,288.75 | D59: 16,183.55 | E59: =C59-D59 -> 9,105.20
B60: dont revenus | C60: 18,983.40 | D60: 20,630.40 | E60: =C60-D60 -> -1,647.00
A62: 2 | B62: Formation | C62: =C63-C64 -> 333,015.40 | D62: 329,798.65 | E62: =C62-D62 -> 3,216.75
B63: dont charges | C63: 337,619.50 | D63: 341,024.80 | E63: -3,405.30
B64: dont revenus | C64: 4,604.10 | D64: 11,226.15 | E64: -6,622.05
A66: 3 | B66: Culture - Sports - Loisirs - Eglises | C66: =C67-C68 -> 30,646.05 | D66: 7,238.10 | E66: =C66-D66 -> 23,407.95
B67: dont charges | C67: 32,096.05 | D67: 21,688.10 | E67: 10,407.95
B68: dont revenus | C68: 1,450.00 | D68: 14,450.00 | E68: -13,000.00
A70: 4 | B70: Santé | C70: =C71-C72 -> 2,427.60 | D70: 3,979.35 | E70: =C70-D70 -> -1,551.75
B71: dont charges | C71: 2,427.60 | D71: 3,979.35 | E71: -1,551.75
B72: dont revenus | C72: 0.00 | D72: 0.00 | E72: 0.00
A74: 5 | B74: Prévoyance sociale | C74: =C75-C76 -> 207,851.90 | D74: 198,605.75 | E74: =C74-D74 -> 9,246.15
B75: dont charges | C75: 231,914.80 | D75: 200,292.75 | E75: 31,622.05
B76: dont revenus | C76: 24,062.90 | D76: 1,687.00 | E76: 22,375.90
A78: 6 | B78: Traffic - Transports - Télécommunications | C78: =C79-C80 -> 62,157.45 | D78: 42,552.50 | E78: =C78-D78 -> 19,604.95
B79: dont charges | C79: 134,194.80 | D79: 115,276.35 | E79: 18,918.45
B80: dont revenus | C80: 72,037.35 | D80: 72,723.85 | E80: -686.50
A82: 7 | B82: Protection de l'environnement - Aménagement du territoire | C82: =C83-C84 -> -7,784.17 | D82: -14,096.71 | E82: =C82-D82 -> 6,312.54
B83: dont charges | C83: 170,810.33 | D83: 176,477.19 | E83: -5,666.86
B84: dont revenus | C84: 178,594.50 | D84: 190,573.90 | E84: -11,979.40
A86: 8 | B86: Economie publique | C86: =C87-C88 -> 1,083.00 | D86: 1,752.20 | E86: =C86-D86 -> -669.20
B87: dont charges | C87: 1,110.00 | D87: 1,770.20 | E87: -660.20
B88: dont revenus | C88: 27.00 | D88: 18.00 | E88: 9.00
A90: 9 | B90: Finances - Impôts | C90: =C91-C92 -> -676,574.61 | D90: -827,237.57 | E90: =C90-D90 -> 150,662.96
B91: dont charges | C91: 71,110.87 | D91: 55,703.90 | E91: 15,406.97
B92: dont revenus | C92: 747,685.48 | D92: 882,941.47 | E92: -135,255.99
B94: Récapitulation générale | C94: =C54+C58+C62+C66+C70+C74+C78+C82+C86+C90 -> 48,557.32 | D94: -183,367.53 | E94: =C94-D94 -> 231,924.85
B95: dont charges | C95: 1,104,228.55 | D95: 1,024,476.59 | E95: 79,751.96
B96: dont revenus | C96: 1,055,671.23 | D96: 1,207,844.12 | E96: -152,172.89
A101: Comptes de résultats par fonction 2021 | C101: 2021 | D101: 2020 | E101: Variation
A102: Comptes consolidés de l'ensemble des communes et par district | C102: 469 | D102: 485 | E102: =C102-D102 -> -16
C103: Châtillon | D103: Châtillon | E103: Châtillon
A104: 0 | B104: Administration générale | C104: =C105-C106 -> 140,044.42 | D104: 154,299.85 | E104: =C104-D104 -> -14,255.43
B105: dont charges | C105: 147,329.52 | D105: 154,757.00 | E105: =C105-D105 -> -7,427.48
B106: dont revenus | C106: 7,285.10 | D106: 457.15 | E106: =C106-D106 -> 6,827.95
A108: 1 | B108: Ordre et sécurité publics - Défense | C108: =C109-C110 -> 18,445.99 | D108: 43,788.30 | E108: =C108-D108 -> -25,342.31
B109: dont charges | C109: 49,638.79 | D109: 68,165.15 | E109: =C109-D109 -> -18,526.36
B110: dont revenus | C110: 31,192.80 | D110: 24,376.85 | E110: =C110-D110 -> 6,815.95
A112: 2 | B112: Formation | C112: =C113-C114 -> 662,335.32 | D112: 642,346.32 | E112: =C112-D112 -> 19,989.00
B113: dont charges | C113: 667,736.77 | D113: 684,189.42 | E113: -16,452.65
B114: dont revenus | C114: 5,401.45 | D114: 41,843.10 | E114: -36,441.65
A116: 3 | B116: Culture - Sports - Loisirs - Eglises | C116: =C117-C118 -> 6,075.45 | D116: 5,439.00 | E116: =C116-D116 -> 636.45
B117: dont charges | C117: 6,075.45 | D117: 57,977.20 | E117: -51,901.75
B118: dont revenus | C118: 0.00 | D118: 52,538.20 | E118: -52,538.20
A120: 4 | B120: Santé | C120: =C121-C122 -> 4,745.26 | D120: 5,583.73 | E120: =C120-D120 -> -838.47
B121: dont charges | C121: 4,756.26 | D121: 5,891.73 | E121: -1,135.47
B122: dont revenus | C122: 11.00 | D122: 308.00 | E122: -297.00
A124: 5 | B124: Prévoyance sociale | C124: =C125-C126 -> 373,566.04 | D124: 367,622.08 | E124: =C124-D124 -> 5,943.96
B125: dont charges | C125: 403,988.69 | D125: 426,048.78 | E125: -22,060.09
B126: dont revenus | C126: 30,422.65 | D126: 58,426.70 | E126: -28,004.05
A128: 6 | B128: Traffic - Transports - Télécommunications | C128: =C129-C130 -> 35,684.60 | D128: 27,321.60 | E128: =C128-D128 -> 8,363.00
B129: dont charges | C129: 55,054.60 | D129: 47,715.10 | E129: 7,339.50
B130: dont revenus | C130: 19,370.00 | D130: 20,393.50 | E130: -1,023.50
A132: 7 | B132: Protection de l'environnement - Aménagement du territoire | C132: =C133-C134 -> 6,679.18 | D132: 10,391.77 | E132: =C132-D132 -> -3,712.59
B133: dont charges | C133: 159,834.73 | D133: 162,516.62 | E133: -2,681.89
B134: dont revenus | C134: 153,155.55 | D134: 152,124.85 | E134: 1,030.70
A136: 8 | B136: Economie publique | C136: =C137-C138 -> 3,542.70 | D136: 3,363.80 | E136: =C136-D136 -> 178.90
B137: dont charges | C137: 22,749.50 | D137: 7,522.35 | E137: 15,227.15
B138: dont revenus | C138: 19,206.80 | D138: 4,158.55 | E138: 15,048.25
A140: 9 | B140: Finances - Impôts | C140: =C141-C142 -> -1,156,290.36 | D140: -1,230,835.17 | E140: =C140-D140 -> 74,544.81
B141: dont charges | C141: 119,834.38 | D141: 125,870.87 | E141: -6,036.49
B142: dont revenus | C142: 1,276,124.74 | D142: 1,356,706.04 | E142: -80,581.30
B144: Récapitulation générale | C144: =C104+C108+C112+C116+C120+C124+C128+C132+C136+C140 -> 94,828.60 | D144: 29,321.28 | E144: =C144-D144 -> 65,507.32
B145: dont charges | C145: 1,636,998.69 | D145: 1,740,654.22 | E145: -103,655.53
B146: dont revenus | C146: 1,542,170.09 | D146: 1,711,332.94 | E146: -169,162.85
A151: Comptes de résultats par fonction 2021 | C151: 2021 | D151: 2020 | E151: Variation
A152: Comptes consolidés de l'ensemble des communes et par district | C152: 439 | D152: 446 | E152: =C152-D152 -> -7
C153: Courchapoix | D153: Courchapoix | E153: Courchapoix
A154: 0 | B154: Administration générale | C154: =C155-C156 -> 211,087.01 | D154: 224,428.74 | E154: =C154-D154 -> -13,341.73
B155: dont charges | C155: 237,815.77 | D155: 261,752.39 | E155: =C155-D155 -> -23,936.62
B156: dont revenus | C156: 26,728.76 | D156: 37,323.65 | E156: =C156-D156 -> -10,594.89
A158: 1 | B158: Ordre et sécurité publics - Défense | C158: =C159-C160 -> -28,039.45 | D158: 992.10 | E158: =C158-D158 -> -29,031.55
B159: dont charges | C159: 71,610.90 | D159: 124,413.85 | E159: =C159-D159 -> -52,802.95
B160: dont revenus | C160: 99,650.35 | D160: 123,421.75 | E160: =C160-D160 -> -23,771.40
A162: 2 | B162: Formation | C162: =C163-C164 -> 600,071.82 | D162: 586,778.91 | E162: =C162-D162 -> 13,292.91
B163: dont charges | C163: 604,893.02 | D163: 609,316.40 | E163: -4,423.38
B164: dont revenus | C164: 4,821.20 | D164: 22,537.49 | E164: -17,716.29
A166: 3 | B166: Culture - Sports - Loisirs - Eglises | C166: =C167-C168 -> 9,077.65 | D166: 8,685.65 | E166: =C166-D166 -> 392.00
B167: dont charges | C167: 9,077.65 | D167: 8,685.65 | E167: 392.00
B168: dont revenus | C168: 0.00 | D168: 0.00 | E168: 0.00
A170: 4 | B170: Santé | C170: =C171-C172 -> 2,178.38 | D170: 3,237.50 | E170: =C170-D170 -> -1,059.12
B171: dont charges | C171: 2,178.38 | D171: 3,237.50 | E171: -1,059.12
B172: dont revenus | C172: 0.00 | D172: 0.00 | E172: 0.00
A174: 5 | B174: Prévoyance sociale | C174: =C175-C176 -> 331,156.65 | D174: 279,704.60 | E174: =C174-D174 -> 51,452.05
B175: dont charges | C175: 363,209.20 | D175: 323,508.20 | E175: 39,701.00
B176: dont revenus | C176: 32,052.55 | D176: 43,803.60 | E176: -11,751.05
A178: 6 | B178: Traffic - Transports - Télécommunications | C178: =C179-C180 -> 65,264.60 | D178: 36,996.90 | E178: =C178-D178 -> 28,267.70
B179: dont charges | C179: 96,874.20 | D179: 78,958.60 | E179: 17,915.60
B180: dont revenus | C180: 31,609.60 | D180: 41,961.70 | E180: -10,352.10
A182: 7 | B182: Protection de l'environnement - Aménagement du territoire | C182: =C183-C184 -> -69,113.75 | D182: -4,010.95 | E182: =C182-D182 -> -65,102.80
B183: dont charges | C183: 84,370.85 | D183: 201,459.45 | E183: -117,088.60
B184: dont revenus | C184: 153,484.60 | D184: 205,470.40 | E184: -51,985.80
A186: 8 | B186: Economie publique | C186: =C187-C188 -> -51,629.61 | D186: -2,256.16 | E186: =C186-D186 -> -49,373.45
B187: dont charges | C187: 306,314.99 | D187: 25,607.45 | E187: 280,707.54
B188: dont revenus | C188: 357,944.60 | D188: 27,863.61 | E188: 330,080.99
A190: 9 | B190: Finances - Impôts | C190: =C191-C192 -> -1,176,166.09 | D190: -1,156,210.95 | E190: =C190-D190 -> -19,955.14
B191: dont charges | C191: 95,138.23 | D191: 284,887.95 | E191: -189,749.72
B192: dont revenus | C192: 1,271,304.32 | D192: 1,441,098.90 | E192: -169,794.58
B194: Récapitulation générale | C194: =C154+C158+C162+C166+C170+C174+C178+C182+C186+C190 -> -106,112.79 | D194: -21,653.66 | E194: =C194-D194 -> -84,459.13
B195: dont charges | C195: 1,871,483.19 | D195: 1,921,827.44 | E195: -50,344.25
B196: dont revenus | C196: 1,977,595.98 | D196: 1,943,481.10 | E196: 34,114.88
A201: Comptes de résultats par fonction 2021 | C201: 2021 | D201: 2020 | E201: Variation
A202: Comptes consolidés de l'ensemble des communes et par district | C202: 3,728 | D202: 3,631 | E202: =C202-D202 -> 97
C203: Courrendlin | D203: Courrendlin | E203: Courrendlin
A204: 0 | B204: Administration générale | C204: =C205-C206 -> 1,214,258.83 | D204: 1,249,703.31 | E204: =C204-D204 -> -35,444.48
B205: dont charges | C205: 1,350,834.68 | D205: 1,338,052.51 | E205: =C205-D205 -> 12,782.17
B206: dont revenus | C206: 136,575.85 | D206: 88,349.20 | E206: =C206-D206 -> 48,226.65
A208: 1 | B208: Ordre et sécurité publics - Défense | C208: =C209-C210 -> -7,436.15 | D208: -13,663.91 | E208: =C208-D208 -> 6,227.76
B209: dont charges | C209: 316,131.70 | D209: 293,636.30 | E209: =C209-D209 -> 22,495.40
B210: dont revenus | C210: 323,567.85 | D210: 307,300.21 | E210: =C210-D210 -> 16,267.64
A212: 2 | B212: Formation | C212: =C213-C214 -> 4,861,806.46 | D212: 4,626,017.70 | E212: =C212-D212 -> 235,788.76
B213: dont charges | C213: 5,365,197.91 | D213: 5,089,275.00 | E213: 275,922.91
B214: dont revenus | C214: 503,391.45 | D214: 463,257.30 | E214: 40,134.15
A216: 3 | B216: Culture - Sports - Loisirs - Eglises | C216: =C217-C218 -> 101,105.45 | D216: 129,013.36 | E216: =C216-D216 -> -27,907.91
B217: dont charges | C217: 117,105.45 | D217: 130,013.36 | E217: -12,907.91
B218: dont revenus | C218: 16,000.00 | D218: 1,000.00 | E218: 15,000.00
A220: 4 | B220: Santé | C220: =C221-C222 -> 37,804.38 | D220: 94,627.84 | E220: =C220-D220 -> -56,823.46
B221: dont charges | C221: 37,804.38 | D221: 94,775.94 | E221: -56,971.56
B222: dont revenus | C222: 0.00 | D222: 148.10 | E222: -148.10
A224: 5 | B224: Prévoyance sociale | C224: =C225-C226 -> 2,920,006.75 | D224: 2,819,293.06 | E224: =C224-D224 -> 100,713.69
B225: dont charges | C225: 3,709,834.50 | D225: 3,482,952.26 | E225: 226,882.24
B226: dont revenus | C226: 789,827.75 | D226: 663,659.20 | E226: 126,168.55
A228: 6 | B228: Traffic - Transports - Télécommunications | C228: =C229-C230 -> 539,735.77 | D228: 516,695.81 | E228: =C228-D228 -> 23,039.96
B229: dont charges | C229: 797,504.17 | D229: 741,513.16 | E229: 55,991.01
B230: dont revenus | C230: 257,768.40 | D230: 224,817.35 | E230: 32,951.05
A232: 7 | B232: Protection de l'environnement - Aménagement du territoire | C232: =C233-C234 -> -319,112.13 | D232: -433,133.09 | E232: =C232-D232 -> 114,020.96
B233: dont charges | C233: 1,257,710.98 | D233: 1,271,921.23 | E233: -14,210.25
B234: dont revenus | C234: 1,576,823.11 | D234: 1,705,054.32 | E234: -128,231.21
A236: 8 | B236: Economie publique | C236: =C237-C238 -> 39,090.24 | D236: -105,956.19 | E236: =C236-D236 -> 145,046.43
B237: dont charges | C237: 1,221,465.07 | D237: 923,102.82 | E237: 298,362.25
B238: dont revenus | C238: 1,182,374.83 | D238: 1,029,059.01 | E238: 153,315.82
A240: 9 | B240: Finances - Impôts | C240: =C241-C242 -> -9,387,259.60 | D240: -8,685,565.20 | E240: =C240-D240 -> -701,694.40
B241: dont charges | C241: 2,170,782.46 | D241: 1,922,525.90 | E241: 248,256.56
B242: dont revenus | C242: 11,558,042.06 | D242: 10,608,091.10 | E242: 949,950.96
B244: Récapitulation générale | C244: =C204+C208+C212+C216+C220+C224+C228+C232+C236+C240 -> 0.00 | D244: 197,032.69 | E244: =C244-D244 -> -197,032.69
B245: dont charges | C245: 16,344,371.30 | D245: 15,287,768.48 | E245: 1,056,602.82
B246: dont revenus | C246: 16,344,371.30 | D246: 15,090,735.79 | E246: 1,253,635.51
A251: Comptes de résultats par fonction 2021 | C251: 2021 | D251: 2020 | E251: Variation
A252: Comptes consolidés de l'ensemble des communes et par district | C252: 3,345 | D252: 3,313 | E252: =C252-D252 -> 32
C253: Courroux | D253: Courroux | E253: Courroux
A254: 0 | B254: Administration générale | C254: =C255-C256 -> 808,960.65 | D254: =D255-D256 -> 800,331.43 | E254: =C254-D254 -> 8,629.22
B255: dont charges | C255: 949,931.33 | D255: 935,184.34 | E255: =C255-D255 -> 14,746.99
B256: dont revenus | C256: 140,970.68 | D256: 134,852.91 | E256: =C256-D256 -> 6,117.77
A258: 1 | B258: Ordre et sécurité publics - Défense | C258: =C259-C260 -> 135,999.55 | D258: =D259-D260 -> 86,776.06 | E258: =C258-D258 -> 49,223.49
B259: dont charges | C259: 383,801.97 | D259: 373,976.74 | E259: =C259-D259 -> 9,825.23
B260: dont revenus | C260: 247,802.42 | D260: 287,200.68 | E260: =C260-D260 -> -39,398.26
A262: 2 | B262: Formation | C262: =C263-C264 -> 4,310,621.79 | D262: =D263-D264 -> 4,366,077.43 | E262: =C262-D262 -> -55,455.64
B263: dont charges | C263: 4,403,237.44 | D263: 4,477,440.48 | E263: -74,203.04
B264: dont revenus | C264: 92,615.65 | D264: 111,363.05 | E264: -18,747.40
A266: 3 | B266: Culture - Sports - Loisirs - Eglises | C266: =C267-C268 -> 242,072.23 | D266: =D267-D268 -> 152,399.41 | E266: =C266-D266 -> 89,672.82
B267: dont charges | C267: 261,898.33 | D267: 196,052.76 | E267: 65,845.57
B268: dont revenus | C268: 19,826.10 | D268: 43,653.35 | E268: -23,827.25
A270: 4 | B270: Santé | C270: =C271-C272 -> 26,967.75 | D270: =D271-D272 -> 27,828.05 | E270: =C270-D270 -> -860.30
B271: dont charges | C271: 26,967.75 | D271: 27,828.05 | E271: -860.30
B272: dont revenus | C272: 0.00 | D272: 0.00 | E272: 0.00
A274: 5 | B274: Prévoyance sociale | C274: =C275-C276 -> 2,616,330.92 | D274: =D275-D276 -> 2,456,722.43 | E274: =C274-D274 -> 159,608.49
B275: dont charges | C275: 3,967,773.72 | D275: 3,929,125.08 | E275: 38,648.64
... 1852 more rows

Sheet Bilan
A1: Bilan | F1: 2021 | G1: 2020 | H1: Variation
A2: Comptes consolidés de l'ensemble des communes et par district | F2: 947 | G2: 923 | H2: =F2-G2 -> 24
F3: Boécourt | G3: Boécourt | H3: Boécourt
A4: 1 | E4: Actif | F4: =F6+F14+F24+F30+F40+F47+F53+F61+F68+F79+F85+F96+F107 -> 15,188,762.25 | G4: =G6+G14+G24+G30+G40+G47+G53+G61+G68+G79+G85+G96+G107 -> 13,767,242.96 | H4: =F4-G4 -> 1,421,519.29
B5: 10 | E5: Patrimoine financier | F5: =F6+F14+F24+F30+F40+F47+F53+F61 -> 6,215,834.74 | G5: =G6+G14+G24+G30+G40+G47+G53+G61 -> 6,025,500.69 | H5: =F5-G5 -> 190,334.05
C6: 100 | E6: Disponibilité et placements à court terme | F6: =F7+F8+F9+F10+F11+F12 -> 4,761,773.55 | G6: =G7+G8+G9+G10+G11+G12 -> 4,183,491.65 | H6: =F6-G6 -> 578,281.90
D7: 1000 | E7: Caisse | F7: 267.60 | G7: 435.15 | H7: =F7-G7 -> -167.55
D8: 1001 | E8: Poste | F8: 741,863.52 | G8: 673,237.43 | H8: =F8-G8 -> 68,626.09
D9: 1002 | E9: Banques | F9: 4,019,642.43 | G9: 3,509,819.07 | H9: 509,823.36
D10: 1003 | E10: Placement à court terme sur le marché monétaire | F10: 0.00 | G10: 0.00 | H10: 0.00
D11: 1004 | E11: Carte de débit ou crédit | F11: 0.00 | G11: 0.00 | H11: 0.00
D12: 1009 | E12: Autres disponibilité | F12: 0.00 | G12: 0.00 | H12: 0.00
C14: 101 | E14: Créances | F14: =F15+F16+F17+F18+F19+F20+F21+F22 -> 988,069.30 | G14: =G15+G16+G17+G18+G19+G20+G21+G22 -> 1,187,638.37 | H14: -199,569.07
D15: 1010 | E15: Créances résultant de liraison et de prestations envers des tiers | F15: 166,340.00 | G15: 317,211.65 | H15: -150,871.65
D16: 1011 | E16: Comptes courants avec des tiers | F16: 0.00 | G16: 0.00 | H16: 0.00
D17: 1012 | E17: Créances fiscales | F17: 697,600.16 | G17: 867,726.70 | H17: -170,126.54
D18: 1013 | E18: Acomptes à des tiers | F18: 0.00 | G18: 0.00 | H18: 0.00
D19: 1014 | E19: Créances sur transferts | F19: 0.00 | G19: 0.00 | H19: 0.00
D20: 1015 | E20: Comptes courants internes | F20: 0.00 | G20: 0.00 | H20: 0.00
D21: 1016 | E21: Avances pour les frais administratifs | F21: 0.00 | G21: 0.00 | H21: 0.00
D22: 1019 | E22: Autres créances et TVA | F22: 124,129.14 | G22: 2,700.02 | H22: 121,429.12
C24: 102 | E24: Placements financiers à court terme | F24: =F25+F26+F27+F28 -> 0.00 | G24: =G25+G26+G27+G28 -> 0.00 | H24: 0.00
D25: 1020 | E25: Prêts à court terme | F25: 0.00 | G25: 0.00 | H25: 0.00
D26: 1022 | E26: Placements à intérêts à court terme | F26: 0.00 | G26: 0.00 | H26: 0.00
D27: 1023 | E27: Dépôts à terme | F27: 0.00 | G27: 0.00 | H27: 0.00
D28: 1029 | E28: Autres placements financiers à court terme | F28: 0.00 | G28: 0.00 | H28: 0.00
C30: 104 | E30: Actifs de régularisation | F30: =F31+F32+F33+F34+F35+F36+F37+F38 -> 201,236.19 | G30: =G31+G32+G33+G34+G35+G36+G37+G38 -> 389,614.97 | H30: -188,378.78
D31: 1040 | E31: Charges du personnel | F31: 0.00 | G31: 0.00 | H31: 0.00
D32: 1041 | E32: Charges de biens et de services et autres charges d'exploitations | F32: 178,325.95 | G32: 346,645.90 | H32: -168,319.95
D33: 1042 | E33: Impôts | F33: 22,910.20 | G33: 42,969.05 | H33: -20,058.85
D34: 1043 | E34: Transferts du compte de résultats | F34: 0.04 | G34: 0.02 | H34: 0.02
D35: 1044 | E35: Charges financiers / revenus financiers | F35: 0.00 | G35: 0.00 | H35: 0.00
D36: 1045 | E36: Autres revenus d'exploitations | F36: 0.00 | G36: 0.00 | H36: 0.00
D37: 1046 | E37: Actifs de régularisation du comptes des investissements | F37: 0.00 | G37: 0.00 | H37: 0.00
D38: 1049 | E38: Autres actifs de régularisation du comptes de résultats | F38: 0.00 | G38: 0.00 | H38: 0.00
C40: 106 | E40: Marchandises, fournitures et travaux en cours | F40: =F41+F42+F43+F44+F45 -> 0.00 | G40: =G41+G42+G43+G44+G45 -> 0.00 | H40: 0.00
D41: 1060 | E41: Articles de commerces | F41: 0.00 | G41: 0.00 | H41: 0.00
D42: 1061 | E42: Matières premières et auxiliaires | F42: 0.00 | G42: 0.00 | H42: 0.00
D43: 1062 | E43: Produits semi-finis et finis | F43: 0.00 | G43: 0.00 | H43: 0.00
D44: 1063 | E44: Travaux en cours | F44: 0.00 | G44: 0.00 | H44: 0.00
D45: 1068 | E45: Avances et acomptes versés | F45: 0.00 | G45: 0.00 | H45: 0.00
C47: 107 | E47: Placements financiers | F47: =F48+F49+F50+F51 -> 2,601.00 | G47: =G48+G49+G50+G51 -> 2,601.00 | H47: 0.00
D48: 1070 | E48: Actions et parts sociales | F48: 2,601.00 | G48: 2,601.00 | H48: 0.00
D49: 1071 | E49: Placements à intérêts à long terme | F49: 0.00 | G49: 0.00 | H49: 0.00
D50: 1072 | E50: Cérances à long terme | F50: 0.00 | G50: 0.00 | H50: 0.00
D51: 1079 | E51: Autres placements financiers à long terme | F51: 0.00 | G51: 0.00 | H51: 0.00
C53: 108 | E53: Immobilisation corporelles du PF | F53: =F54+F55+F56+F57+F58+F59 -> 262,154.70 | G53: =G54+G55+G56+G57+G58+G59 -> 262,154.70 | H53: 0.00
D54: 1080 | E54: Terrains du PF | F54: 0.00 | G54: 0.00 | H54: 0.00
D55: 1084 | E55: Bâtiments, locaux et équipement du PF | F55: 262,154.70 | G55: 262,154.70 | H55: 0.00
D56: 1086 | E56: Biens mobiliers du PF | F56: 0.00 | G56: 0.00 | H56: 0.00
D57: 1087 | E57: Installations et constructions du PF | F57: 0.00 | G57: 0.00 | H57: 0.00
D58: 1088 | E58: Avances terrains, bâtiments, mobilier du PF | F58: 0.00 | G58: 0.00 | H58: 0.00
D59: 1089 | E59: Autres immobilisations corporelles du PF | F59: 0.00 | G59: 0.00 | H59: 0.00
C61: 109 | E61: Créances envers les financements spéciaux et fonds du capital de tiers | F61: =F62+F63+F64+F65 -> 0.00 | G61: =G62+G63+G64+G65 -> 0.00 | H61: 0.00
D62: 1090 | E62: Créances envers les financements spéciaux et fonds du capital de tiers | F62: 0.00 | G62: 0.00 | H62: 0.00
D63: 1091 | E63: Créances envres les fonds des capitaux de tiers | F63: 0.00 | G63: 0.00 | H63: 0.00
D64: 1092 | E64: Créances envers les legs et fondations | F64: 0.00 | G64: 0.00 | H64: 0.00
D65: 1093 | E65: Créances envers d'autres capitaux de tiers | F65: 0.00 | G65: 0.00 | H65: 0.00
B67: 14 | E67: Patrimoine administratif | F67: =F68+F79+F85+F96+F107 -> 8,972,927.51 | G67: =G68+G79+G85+G96+G107 -> 7,741,742.27 | H67: 1,231,185.24
C68: 140 | E68: Immobilisation corporelles du PA | F68: =F69+F70+F71+F72+F73+F74+F75+F76+F77 -> 8,956,624.56 | G68: =G69+G70+G71+G72+G73+G74+G75+G76+G77 -> 7,741,742.27 | H68: 1,214,882.29
D69: 1400 | E69: Terrains non bâtis et terrains bâtis du PA | F69: 141,467.00 | G69: 180,157.00 | H69: -38,690.00
D70: 1401 | E70: Routes et voies de communications du PA | F70: 2,791,732.15 | G70: 4,030,584.47 | H70: -1,238,852.32
D71: 1402 | E71: Aménagement des plans d'eau et cours d'eau du PA | F71: 0.00 | G71: 0.00 | H71: 0.00
D72: 1403 | E72: Autres ouvrages de génie civil du PA - Collecteurs, canalisations | F72: 5,449,351.11 | G72: 2,879,859.65 | H72: =F72-G72 -> 2,569,491.46
D73: 1404 | E73: Bâtiments, locaux et équipement du PA | F73: 574,074.30 | G73: 651,141.15 | H73: -77,066.85
D74: 1405 | E74: Forêts du PA | F74: 0.00 | G74: 0.00 | H74: 0.00
D75: 1406 | E75: Biens mobilier du PA | F75: 0.00 | G75: 0.00 | H75: 0.00
D76: 1407 | E76: Immobilisations en construction du PA | F76: 0.00 | G76: 0.00 | H76: 0.00
D77: 1409 | E77: Autres immobilisations corporelles du PA | F77: 0.00 | G77: 0.00 | H77: 0.00
C79: 142 | E79: Immobilisations incorporelles du PA | F79: =F80+F81+F82+F83 -> 0.00 | G79: 0.00 | H79: 0.00
D80: 1420 | E80: Logiciels | F80: 0.00 | G80: 0.00 | H80: 0.00
D81: 1421 | E81: Brevets et licenses | F81: 0.00 | G81: 0.00 | H81: 0.00
D82: 1427 | E82: Immobilisations incorporalles en cours de développement | F82: 0.00 | G82: 0.00 | H82: 0.00
D83: 1429 | E83: Autres immobilisations incorporelles | F83: 0.00 | G83: 0.00 | H83: 0.00
C85: 144 | E85: Prêts | F85: =F86+F87+F88+F89+F90+F91+F92+F93+F94 -> 0.00 | G85: =G86+G87+G88+G89+G90+G91+G92+G93+G94 -> 0.00 | H85: 0.00
D86: 1440 | E86: Prêts à la Confédération | F86: 0.00 | G86: 0.00 | H86: 0.00
D87: 1441 | E87: Prêts aux cantons et concordats | F87: 0.00 | G87: 0.00 | H87: 0.00
D88: 1442 | E88: Prêts aux communes et associations intercommunales | F88: 0.00 | G88: 0.00 | H88: 0.00
D89: 1443 | E89: Prêts aux assurances sociales publiques | F89: 0.00 | G89: 0.00 | H89: 0.00
D90: 1444 | E90: Prêts aux entreprises publiques | F90: 0.00 | G90: 0.00 | H90: 0.00
D91: 1445 | E91: Prêts aux entreprises privées | F91: 0.00 | G91: 0.00 | H91: 0.00
D92: 1446 | E92: Prêts aux organisations privées à but non lucratif | F92: 0.00 | G92: 0.00 | H92: 0.00
D93: 1447 | E93: Prêts aux ménages privés | F93: 0.00 | G93: 0.00 | H93: 0.00
D94: 1448 | E94: Prêts à l'étranger | F94: 0.00 | G94: 0.00 | H94: 0.00
C96: 145 | E96: Participations et capital social | F96: =F97+F98+F99+F100+F101+F102+F103+F104+F105 -> 0.00 | G96: =G97+G98+G99+G100+G101+G102+G103+G104+G105 -> 0.00 | H96: 0.00
D97: 1450 | E97: Participations à la Confédération | F97: 0.00 | G97: 0.00 | H97: 0.00
D98: 1451 | E98: Participations aux cantons et concordats | F98: 0.00 | G98: 0.00 | H98: 0.00
D99: 1452 | E99: Participations aux communes et associations intercommunales | F99: 0.00 | G99: 0.00 | H99: 0.00
D100: 1453 | E100: Participations aux assurances sociales publiques | F100: 0.00 | G100: 0.00 | H100: 0.00
D101: 1454 | E101: Participations aux entreprises publiques | F101: 0.00 | G101: 0.00 | H101: 0.00
D102: 1455 | E102: Participations aux entreprises privées | F102: 0.00 | G102: 0.00 | H102: 0.00
D103: 1456 | E103: Participations aux organisations privées à but non lucratif | F103: 0.00 | G103: 0.00 | H103: 0.00
D104: 1457 | E104: Participations aux ménages privés | F104: 0.00 | G104: 0.00 | H104: 0.00
D105: 1458 | E105: Participations à l'étranger | F105: 0.00 | G105: 0.00 | H105: 0.00
C107: 146 | E107: Subventions d'investissements | F107: =F108+F109+F110+F111+F112+F113+F114+F115+F116+F117 -> 16,302.95 | G107: =G108+G109+G110+G111+G112+G113+G114+G115+G116+G117 -> 0.00 | H107: 16,302.95
D108: 1460 | E108: Subventions d'investissements à la Confédération | F108: 0.00 | G108: 0.00 | H108: 0.00
D109: 1461 | E109: Subventions d'investissements aux cantons et concordats | F109: 0.00 | G109: 0.00 | H109: 0.00
D110: 1462 | E110: Subventions d'investissements aux communes et associations | F110: 16,302.95 | G110: 0.00 | H110: 16,302.95
D111: 1463 | E111: Subventions d'investissements aux assurances sociales publiques | F111: 0.00 | G111: 0.00 | H111: 0.00
D112: 1464 | E112: Subventions d'investissements aux entreprises publiques | F112: 0.00 | G112: 0.00 | H112: 0.00
D113: 1465 | E113: Subventions d'investissements aux entreprises privées | F113: 0.00 | G113: 0.00 | H113: 0.00
D114: 1466 | E114: Subventions d'investissements aux organisations privées à but non luc. | F114: 0.00 | G114: 0.00 | H114: 0.00
D115: 1467 | E115: Subventions d'investissements aux ménages privés | F115: 0.00 | G115: 0.00 | H115: 0.00
D116: 1468 | E116: Subventions d'investissements à l'étranger | F116: 0.00 | G116: 0.00 | H116: 0.00
D117: 1469 | E117: Subventions d'investissements aux immobilisations en construction | F117: 0.00 | G117: 0.00 | H117: 0.00
A120: 2 | E120: Passif | F120: =F122+F132+F142+F152+F164+F172+F183+F190+F193+F197+F200+F203+F206+F209+F212+F215 -> 15,188,762.25 | G120: =G122+G132+G142+G152+G164+G172+G183+G190+G193+G197+G200+G203+G206+G209+G212+G215 -> 13,767,242.96 | H120: 1,421,519.29
B121: 20 | E121: Capitaux de tiers | F121: =F122+F132+F142+F152+F164+F172+F183 -> 10,597,593.46 | G121: =G122+G132+G142+G152+G164+G172+G183 -> 9,136,260.52 | H121: 1,461,332.94
C122: 200 | E122: Engagements courants | F122: =F123+F124+F125+F126+F127+F128+F129+F130 -> 0.00 | G122: =G123+G124+G125+G126+G127+G128+G129+G130 -> 3,771.65 | H122: -3,771.65
D123: 2000 | E123: Engagements courants provenant de livraison et de prestations de tiers | F123: 0.00 | G123: 0.00 | H123: 0.00
D124: 2001 | E124: Comptes courants avec des tiers | F124: 0.00 | G124: 7,300.55 | H124: -7,300.55
D125: 2002 | E125: Impôts et TVA | F125: 0.00 | G125: -3,528.90 | H125: 3,528.90
D126: 2003 | E126: Acomptes de tiers | F126: 0.00 | G126: 0.00 | H126: 0.00
D127: 2004 | E127: Engagements de transferts | F127: 0.00 | G127: 0.00 | H127: 0.00
D128: 2005 | E128: Comptes courants internes | F128: 0.00 | G128: 0.00 | H128: 0.00
D129: 2006 | E129: Dépôts et cautions | F129: 0.00 | G129: 0.00 | H129: 0.00
D130: 2009 | E130: Autres engagements courants | F130: 0.00 | G130: 0.00 | H130: 0.00
C132: 201 | E132: Engagements financiers à court terme | F132: =F133+F134+F135+F136+F137+F138+F139+F140 -> 5,748,056.36 | G132: =G133+G134+G135+G136+G137+G138+G139+G140 -> 3,909,040.76 | H132: 1,839,015.60
D133: 2010 | E133: Engagements à court terme envers la Poste | F133: 5,619,656.36 | G133: 3,848,998.77 | H133: 1,770,657.59
D134: 2011 | E134: Engagements à court terme envers les collectivités et associations | F134: 0.00 | G134: 0.00 | H134: 0.00
D135: 2012 | E135: Engagements à court terme envers des entités consolidées | F135: 0.00 | G135: 0.00 | H135: 0.00
D136: 2013 | E136: Engagements à court terme envers des entités indépendantes | F136: 0.00 | G136: 0.00 | H136: =F136-G136 -> 0.00
D137: 2014 | E137: Parts à court terme d'engagement à long terme | F137: 128,400.00 | G137: 60,041.99 | H137: 68,358.01
D138: 2015 | E138: Parts à court terme des dettes de locations (leasing) à long terme | F138: 0.00 | G138: 0.00 | H138: 0.00
D139: 2016 | E139: Instruments financiers dérivés | F139: 0.00 | G139: 0.00 | H139: 0.00
D140: 2019 | E140: Autres engagements financiers à court terme | F140: 0.00 | G140: 0.00 | H140: 0.00
C142: 204 | E142: Passifs de régularisation | F142: =F143+F144+F145+F146+F147+F148+F149+F150 -> 166,973.40 | G142: =G143+G144+G145+G146+G147+G148+G149+G150 -> 268,600.05 | H142: -101,626.65
D143: 2040 | E143: Charges du personnel | F143: 0.00 | G143: 0.00 | H143: 0.00
D144: 2041 | E144: Charges de biens et services et autres charges d'exploitation | F144: 154,885.60 | G144: 192,964.20 | H144: -38,078.60
D145: 2042 | E145: Impôts | F145: 12,087.80 | G145: 75,635.85 | H145: -63,548.05
D146: 2043 | E146: Transferts du compte de résultats | F146: 0.00 | G146: 0.00 | H146: 0.00
D147: 2044 | E147: Charges financières / revenus financiers | F147: 0.00 | G147: 0.00 | H147: 0.00
D148: 2045 | E148: Autres revenus d'exploitations | F148: 0.00 | G148: 0.00 | H148: 0.00
D149: 2046 | E149: Passifs de régularisation du compte des investissements | F149: 0.00 | G149: 0.00 | H149: 0.00
D150: 2049 | E150: Autres passifs de régularisation et du compte de résultats | F150: 0.00 | G150: 0.00 | H150: 0.00
C152: 205 | E152: Provisions à court terme | F152: =F153+F154+F155+F156+F157+F158+F159+F160+F161+F162 -> 0.00 | G152: =G153+G154+G155+G156+G157+G158+G159+G160+G161+G162 -> 0.00 | H152: 0.00
D153: 2050 | E153: Provisions à court terme pour les prestations supp. du personnel | F153: 0.00 | G153: 0.00 | H153: 0.00
D154: 2051 | E154: Provisions à court terme pour les autres droits du personnel | F154: 0.00 | G154: 0.00 | H154: 0.00
D155: 2052 | E155: Provisions à court terme pour les procès | F155: 0.00 | G155: 0.00 | H155: 0.00
D156: 2053 | E156: Provisions à court terme pour les dommages non assurés | F156: 0.00 | G156: 0.00 | H156: 0.00
D157: 2054 | E157: Provisions à court terme pour les cautions et garantie | F157: 0.00 | G157: 0.00 | H157: 0.00
D158: 2055 | E158: Provisions à court terme pour les autres activités d'exploitation | F158: 0.00 | G158: 0.00 | H158: 0.00
D159: 2056 | E159: Provisions à court terme pour les engagements de prévoyance | F159: 0.00 | G159: 0.00 | H159: 0.00
D160: 2057 | E160: Provisions à court terme pour les charges financières | F160: 0.00 | G160: 0.00 | H160: 0.00
D161: 2058 | E161: Provisions à court terme du compte des investissements | F161: 0.00 | G161: 0.00 | H161: 0.00
D162: 2059 | E162: Autres provisions à court terme | F162: 0.00 | G162: 0.00 | H162: 0.00
C164: 206 | E164: Engagements financiers à long terme | F164: =F165+F166+F167+F168+F169+F170 -> 4,604,400.00 | G164: =G165+G166+G167+G168+G169+G170 -> 4,874,949.96 | H164: -270,549.96
D165: 2060 | E165: Hypothèques | F165: 0.00 | G165: 0.00 | H165: 0.00
D166: 2062 | E166: Bons de caisse | F166: 0.00 | G166: 0.00 | H166: 0.00
D167: 2063 | E167: Emprunts | F167: 0.00 | G167: 0.00 | H167: 0.00
D168: 2064 | E168: Emprunts et reconnaissances de dettes | F168: 4,604,400.00 | G168: 4,874,949.96 | H168: -270,549.96
D169: 2067 | E169: Contrats de location | F169: 0.00 | G169: 0.00 | H169: 0.00
D170: 2069 | E170: Autres engagements financiers à long terme | F170: 0.00 | G170: 0.00 | H170: 0.00
C172: 208 | E172: Provisions à long terme | F172: =F173+F174+F175+F176+F177+F178+F179+F180+F181 -> 0.00 | G172: =G173+G174+G175+G176+G177+G178+G179+G180+G181 -> 0.00 | H172: 0.00
D173: 2081 | E173: Provisions à long terme pour les prétentions du personnel | F173: 0.00 | G173: 0.00 | H173: 0.00
D174: 2082 | E174: Provisions à long terme pour les procès | F174: 0.00 | G174: 0.00 | H174: 0.00
D175: 2083 | E175: Provisions à long terme pour les dommages non assurés | F175: 0.00 | G175: 0.00 | H175: 0.00
D176: 2084 | E176: Provisions à long terme pour les cautions et garanties | F176: 0.00 | G176: 0.00 | H176: 0.00
D177: 2085 | E177: Provisions à long terme pour les autres activités d'exploitation | F177: 0.00 | G177: 0.00 | H177: 0.00
D178: 2086 | E178: Provisions à long terme pour les engagements de prévoyance | F178: 0.00 | G178: 0.00 | H178: 0.00
D179: 2087 | E179: Provisions à long terme pour les charges financières | F179: 0.00 | G179: 0.00 | H179: 0.00
D180: 2088 | E180: Provisions à long terme du compte des investissements | F180: 0.00 | G180: 0.00 | H180: 0.00
D181: 2089 | E181: Autres provisions à long terme du compte de résultats | F181: 0.00 | G181: 0.00 | H181: 0.00
C183: 209 | E183: Engagements envers les financements spéciaux et capitaux de tiers | F183: =F184+F185+F186+F187 -> 78,163.70 | G183: =G184+G185+G186+G187 -> 79,898.10 | H183: -1,734.40
D184: 2090 | E184: Engagements envers les financements spéciaux et capitaux de tiers | F184: 0.00 | G184: 0.00 | H184: 0.00
D185: 2091 | E185: Engagements envers les fonds des capitaux de tiers | F185: 78,163.70 | G185: 79,898.10 | H185: -1,734.40
D186: 2092 | E186: Engagements envers les legs et fondations des capitaux de tiers | F186: 0.00 | G186: 0.00 | H186: 0.00
D187: 2093 | E187: Engagements envrers d'autres capitaux de tiers affectés | F187: 0.00 | G187: 0.00 | H187: 0.00
B189: 29 | E189: Capital propre | F189: =F190+F193+F197+F200+F203+F206+F209+F212+F215 -> 4,591,168.79 | G189: =G190+G193+G197+G200+G203+G206+G209+G212+G215 -> 4,630,982.44 | H189: -39,813.65
C190: 290 | E190: Financement spéciaux du capital propre | F190: =F191 -> 2,151,199.26 | G190: =G191 -> 1,974,908.03 | H190: 176,291.23
D191: 2900 | E191: Financement spéciaux du capital propre | F191: 2,151,199.26 | G191: 1,974,908.03 | H191: 176,291.23
C193: 291 | E193: Fonds du capital propres | F193: =F194+F195 -> 50,921.10 | G193: =G194+G195 -> 109,400.80 | H193: -58,479.70
D194: 2910 | E194: Fonds du capital propres | F194: 50,921.10 | G194: 109,400.80 | H194: -58,479.70
D195: 2911 | E195: Legs et fondations sans personnalité juridique du capital propre | F195: 0.00 | G195: 0.00 | H195: 0.00
C197: 292 | E197: Réserves des domaines de l'enveloppe budgétaire | F197: =F198 -> 0.00 | G197: =G198 -> 0.00 | H197: 0.00
D198: 2920 | E198: Réserves des domaines de l'enveloppe budgétaire | F198: 0.00 | G198: 0.00 | H198: 0.00
C200: 293 | E200: Préfinancements | F200: =F201 -> 0.00 | G200: =G201 -> 0.00 | H200: =F200-G200 -> 0.00
D201: 2930 | E201: Préfinancements | F201: 0.00 | G201: 0.00 | H201: 0.00
C203: 294 | E203: Réserves de politique budgétaire | F203: =F204 -> 320,000.00 | G203: =G204 -> 320,000.00 | H203: 0.00
D204: 2940 | E204: Réserves de politique budgétaire | F204: 320,000.00 | G204: 320,000.00 | H204: 0.00
C206: 295 | E206: Réserves liées à la réévaluation (introduction MCH2) | F206: =F207 -> 0.00 | G206: =G207 -> 0.00 | H206: 0.00
D207: 2950 | E207: Réserves liées à la réévaluation (introduction MCH2) | F207: 0.00 | G207: 0.00 | H207: 0.00
C209: 296 | E209: Réserves liées à la réévaluation du PF | F209: =F210 -> 0.00 | G209: =G210 -> 202,488.91 | H209: -202,488.91
D210: 2960 | E210: Réserves liées à la réévaluation du PF | F210: 0.00 | G210: 202,488.91 | H210: -202,488.91
C212: 298 | E212: Autres capitaux propres | F212: =F213 -> 0.00 | G212: =G213 -> 0.00 | H212: 0.00
D213: 2980 | E213: Autres capitaux propres | F213: 0.00 | G213: 0.00 | H213: 0.00
C215: 299 | E215: Résultat annuel (excédent de charges ou produits) | F215: =F216+F217 -> 2,069,048.43 | G215: =G216+G217 -> 2,024,184.70 | H215: 44,863.73
D216: 2990 | E216: Résultat annuel (excédent de charges ou produits) | F216: -157,625.18 | G216: 6,015.15 | H216: -163,640.33
D217: 2999 | E217: Résultats cumulés (fortune nette ou découvert) | F217: 2,226,673.61 | G217: 2,018,169.55 | H217: 208,504.06
A222: Bilan | F222: 2021 | G222: 2020 | H222: Variation
A223: Comptes consolidés de l'ensemble des communes et par district | F223: 265 | G223: 270 | H223: =F223-G223 -> -5.00
F224: Bourrignon | G224: Bourrignon | H224: Bourrignon
A225: 1 | E225: Actif | F225: =F227+F235+F245+F251+F261+F268+F274+F282+F289+F300+F306+F317+F328 -> 2,965,973.02 | G225: 3,134,013.04 | H225: =F225-G225 -> -168,040.02
B226: 10 | E226: Patrimoine financier | F226: =F227+F235+F245+F251+F261+F268+F274+F282 -> 1,141,851.18 | G226: 1,369,739.14 | H226: =F226-G226 -> -227,887.96
C227: 100 | E227: Disponibilité et placements à court terme | F227: =F228+F229+F230+F231+F232+F233 -> 302,167.90 | G227: 405,753.08 | H227: =F227-G227 -> -103,585.18
D228: 1000 | E228: Caisse | F228: 1,512.45 | G228: 166.55 | H228: =F228-G228 -> 1,345.90
D229: 1001 | E229: Poste | F229: 121,632.52 | G229: 317,791.38 | H229: =F229-G229 -> -196,158.86
D230: 1002 | E230: Banques | F230: 179,022.93 | G230: 87,795.15 | H230: 91,227.78
D231: 1003 | E231: Placement à court terme sur le marché monétaire | F231: 0.00 | G231: 0.00 | H231: 0.00
D232: 1004 | E232: Carte de débit ou crédit | F232: 0.00 | G232: 0.00 | H232: 0.00
D233: 1009 | E233: Autres disponibilité | F233: 0.00 | G233: 0.00 | H233: 0.00
... 10517 more rows

Sheet Compte des investissements (hidden)
A1: Comptes des investissements | E1: 2021 | F1: 2020 | G1: Variation
A2: Comptes consolidés de l'ensemble des communes et par district | E2: ='[1]Base de données pop.'!C2 -> 947 | F2: 923 | G2: =E2-F2 -> 24
E3: Boécourt | F3: Boécourt | G3: Boécourt
A4: 5 | D4: Dépenses d'investissements | E4: =E5+E15+E25+E30+E41+E52+E63+E74 -> 1,817,467.61 | F4: =F5+F15+F25+F30+F41+F52+F63+F74 -> 1,961,429.61 | G4: =E4-F4 -> -143,962.00
B5: 50 | D5: Immobilisations corporelles | E5: =E6+E7+E8+E9+E10+E11+E12+E13 -> 1,817,467.61 | F5: =F6+F7+F8+F9+F10+F11+F12+F13 -> 1,961,429.61 | G5: =E5-F5 -> -143,962.00
C6: 500 | D6: Terrains | E6: 0.00 | F6: 0.00 | G6: =E6-F6 -> 0.00
C7: 501 | D7: Routes et voies de communications | E7: 488,789.85 | F7: 593,862.55 | G7: =E7-F7 -> -105,072.70
C8: 502 | D8: Aménagements des cours d'eau | E8: 0.00 | F8: 0.00 | G8: 0.00
C9: 503 | D9: Autres travaux et ouvrages de génie civil | E9: 1,328,677.76 | F9: 1,367,567.06 | G9: -38,889.30
C10: 504 | D10: Bâtiments | E10: 0.00 | F10: 0.00 | G10: 0.00
C11: 505 | D11: Forêts | E11: 0.00 | F11: 0.00 | G11: 0.00
C12: 506 | D12: Biens mobiliers | E12: 0.00 | F12: 0.00 | G12: 0.00
C13: 509 | D13: Autres immobilisation corporelles | E13: 0.00 | F13: 0.00 | G13: 0.00
B15: 51 | D15: Investissement pour le compte de tiers | E15: =E16+E17+E18+E19+E20+E21+E22+E23 -> 0.00 | F15: =F16+F17+F18+F19+F20+F21+F22+F23 -> 0.00 | G15: 0.00
C16: 510 | D16: Terrains | E16: 0.00 | F16: 0.00 | G16: 0.00
C17: 511 | D17: Routes et voies de communications | E17: 0.00 | F17: 0.00 | G17: 0.00
C18: 512 | D18: Aménagements des cours d'eau | E18: 0.00 | F18: 0.00 | G18: 0.00
C19: 513 | D19: Autres travaux et ouvrages de génie civil | E19: 0.00 | F19: 0.00 | G19: 0.00
C20: 514 | D20: Bâtiments | E20: 0.00 | F20: 0.00 | G20: 0.00
C21: 515 | D21: Forêts | E21: 0.00 | F21: 0.00 | G21: 0.00
C22: 516 | D22: Biens mobiliers | E22: 0.00 | F22: 0.00 | G22: 0.00
C23: 519 | D23: Autres immobilisation corporelles | E23: 0.00 | F23: 0.00 | G23: 0.00
B25: 52 | D25: Immobilisations incorporelles | E25: =E26+E27+E28 -> 0.00 | F25: =F26+F27+F28 -> 0.00 | G25: 0.00
C26: 520 | D26: Logiciels | E26: 0.00 | F26: 0.00 | G26: 0.00
C27: 521 | D27: Brevets et licenses | E27: 0.00 | F27: 0.00 | G27: 0.00
C28: 529 | D28: Autres immobilisations incorporelles | E28: 0.00 | F28: 0.00 | G28: 0.00
B30: 54 | D30: Prêts | E30: =E31+E32+E33+E34+E35+E36+E37+E38+E39 -> 0.00 | F30: =F31+F32+F33+F34+F35+F36+F37+F38+F39 -> 0.00 | G30: 0.00
C31: 540 | D31: Confédération | E31: 0.00 | F31: 0.00 | G31: 0.00
C32: 541 | D32: Cantons et concordats | E32: 0.00 | F32: 0.00 | G32: 0.00
C33: 542 | D33: Communes et associations intercommunales | E33: 0.00 | F33: 0.00 | G33: 0.00
C34: 543 | D34: Assurances sociales publiques | E34: 0.00 | F34: 0.00 | G34: 0.00
C35: 544 | D35: Entreprises publiques | E35: 0.00 | F35: 0.00 | G35: 0.00
C36: 545 | D36: Entreprises privées | E36: 0.00 | F36: 0.00 | G36: 0.00
C37: 546 | D37: Organisations privées à but non lucratif | E37: 0.00 | F37: 0.00 | G37: 0.00
C38: 547 | D38: Ménages privés | E38: 0.00 | F38: 0.00 | G38: 0.00
C39: 548 | D39: Etrangers | E39: 0.00 | F39: 0.00 | G39: 0.00
B41: 55 | D41: Participations et capital social | E41: =E42+E43+E44+E45+E46+E47+E48+E49+E50 -> 0.00 | F41: =F42+F43+F44+F45+F46+F47+F48+F49+F50 -> 0.00 | G41: 0.00
C42: 550 | D42: Confédération | E42: 0.00 | F42: 0.00 | G42: 0.00
C43: 551 | D43: Cantons et concordats | E43: 0.00 | F43: 0.00 | G43: 0.00
C44: 552 | D44: Communes et associations intercommunales | E44: 0.00 | F44: 0.00 | G44: 0.00
C45: 553 | D45: Assurances sociales publiques | E45: 0.00 | F45: 0.00 | G45: 0.00
C46: 554 | D46: Entreprises publiques | E46: 0.00 | F46: 0.00 | G46: 0.00
C47: 555 | D47: Entreprises privées | E47: 0.00 | F47: 0.00 | G47: 0.00
C48: 556 | D48: Organisations privées à but non lucratif | E48: 0.00 | F48: 0.00 | G48: 0.00
C49: 557 | D49: Ménages privés | E49: 0.00 | F49: 0.00 | G49: 0.00
C50: 558 | D50: Etrangers | E50: 0.00 | F50: 0.00 | G50: 0.00
B52: 56 | D52: Propres suventions des investissements | E52: =E53+E54+E55+E56+E57+E58+E59+E60+E61 -> 0.00 | F52: =F53+F54+F55+F56+F57+F58+F59+F60+F61 -> 0.00 | G52: 0.00
C53: 560 | D53: Confédération | E53: 0.00 | F53: 0.00 | G53: 0.00
C54: 561 | D54: Cantons et concordats | E54: 0.00 | F54: 0.00 | G54: 0.00
C55: 562 | D55: Communes et associations intercommunales | E55: 0.00 | F55: 0.00 | G55: 0.00
C56: 563 | D56: Assurances sociales publiques | E56: 0.00 | F56: 0.00 | G56: 0.00
C57: 564 | D57: Entreprises publiques | E57: 0.00 | F57: 0.00 | G57: 0.00
C58: 565 | D58: Entreprises privées | E58: 0.00 | F58: 0.00 | G58: 0.00
C59: 566 | D59: Organisations privées à but non lucratif | E59: 0.00 | F59: 0.00 | G59: 0.00
C60: 567 | D60: Ménages privés | E60: 0.00 | F60: 0.00 | G60: 0.00
C61: 568 | D61: Etrangers | E61: 0.00 | F61: 0.00 | G61: 0.00
B63: 57 | D63: Subventions des investissements à redistribuer | E63: =E64+E65+E66+E67+E68+E69+E70+E71+E72 -> 0.00 | F63: =F64+F65+F66+F67+F68+F69+F70+F71+F72 -> 0.00 | G63: 0.00
C64: 570 | D64: Confédération | E64: 0.00 | F64: 0.00 | G64: 0.00
C65: 571 | D65: Cantons et concordats | E65: 0.00 | F65: 0.00 | G65: 0.00
C66: 572 | D66: Communes et associations intercommunales | E66: 0.00 | F66: 0.00 | G66: 0.00
C67: 573 | D67: Assurances sociales publiques | E67: 0.00 | F67: 0.00 | G67: 0.00
C68: 574 | D68: Entreprises publiques | E68: 0.00 | F68: 0.00 | G68: 0.00
C69: 575 | D69: Entreprises privées | E69: 0.00 | F69: 0.00 | G69: 0.00
C70: 576 | D70: Organisations privées à but non lucratif | E70: 0.00 | F70: 0.00 | G70: 0.00
C71: 577 | D71: Ménages privés | E71: 0.00 | F71: 0.00 | G71: =E71-F71 -> 0.00
C72: 578 | D72: Etrangers | E72: 0.00 | F72: 0.00 | G72: 0.00
B74: 58 | D74: Investissements extraordinaires | E74: =E75+E76+E77+E78+E79+E80 -> 0.00 | F74: =F75+F76+F77+F78+F79+F80 -> 0.00 | G74: 0.00
C75: 580 | D75: Immobilisations corporelles | E75: 0.00 | F75: 0.00 | G75: 0.00
C76: 582 | D76: Immobilisations incorporelles | E76: 0.00 | F76: 0.00 | G76: 0.00
C77: 584 | D77: Prêts | E77: 0.00 | F77: 0.00 | G77: 0.00
C78: 585 | D78: Participations et capital social | E78: 0.00 | F78: 0.00 | G78: 0.00
C79: 586 | D79: Subventions | E79: 0.00 | F79: 0.00 | G79: 0.00
C80: 589 | D80: Autres investissements extraordinaires | E80: 0.00 | F80: 0.00 | G80: 0.00
B82: 59 | D82: Report au bilan des recettes d'investissement | E82: =E83 -> 320,010.90 | F82: =F83 -> 520,000.00 | G82: -199,989.10
C83: 590 | D83: Report au bilan des recettes d'investissement | E83: 320,010.90 | F83: 520,000.00 | G83: -199,989.10
A87: 6 | D87: Recettes des investissements | E87: =E88+E98+E108+E113+E124+E135+E146+E157+E168 -> 320,010.90 | F87: =F88+F98+F108+F113+F124+F135+F146+F157+F168 -> 520,000.00 | G87: -199,989.10
B88: 60 | D88: Transferts d'immobilisation corporelles dans le patrimoine financier | E88: =E89+E90+E91+E92+E93+E94+E95+E96 -> 118,640.00 | F88: =F89+F90+F91+F92+F93+F94+F95+F96 -> 0.00 | G88: 118,640.00
C89: 600 | D89: Terrains | E89: 0.00 | F89: 0.00 | G89: 0.00
C90: 601 | D90: Routes et voies de communications | E90: 118,640.00 | F90: 0.00 | G90: 118,640.00
C91: 602 | D91: Aménagements des cours d'eau | E91: 0.00 | F91: 0.00 | G91: 0.00
C92: 603 | D92: Autres travaux et ouvrages de génie civil | E92: 0.00 | F92: 0.00 | G92: 0.00
C93: 604 | D93: Bâtiments | E93: 0.00 | F93: 0.00 | G93: 0.00
C94: 605 | D94: Forêts | E94: 0.00 | F94: 0.00 | G94: 0.00
C95: 606 | D95: Biens mobiliers | E95: 0.00 | F95: 0.00 | G95: 0.00
C96: 609 | D96: Autres immobilisation corporelles | E96: 0.00 | F96: 0.00 | G96: 0.00
B98: 61 | D98: Remboursement de tiers | E98: =E99+E100+E101+E102+E103+E104+E105+E106 -> 0.00 | F98: =F99+F100+F101+F102+F103+F104+F105+F106 -> 0.00 | G98: 0.00
C99: 610 | D99: Terrains | E99: 0.00 | F99: 0.00 | G99: 0.00
C100: 611 | D100: Routes et voies de communications | E100: 0.00 | F100: 0.00 | G100: 0.00
C101: 612 | D101: Aménagements des cours d'eau | E101: 0.00 | F101: 0.00 | G101: 0.00
C102: 613 | D102: Autres travaux et ouvrages de génie civil | E102: 0.00 | F102: 0.00 | G102: 0.00
C103: 614 | D103: Bâtiments | E103: 0.00 | F103: 0.00 | G103: 0.00
C104: 615 | D104: Forêts | E104: 0.00 | F104: 0.00 | G104: 0.00
C105: 616 | D105: Biens mobiliers | E105: 0.00 | F105: 0.00 | G105: 0.00
C106: 619 | D106: Autres immobilisation corporelles | E106: 0.00 | F106: 0.00 | G106: 0.00
B108: 62 | D108: Transferts d'immobilisation incorporelles dans le patrimoin financier | E108: =E109+E110+E111 -> 0.00 | F108: =F109+F110+F111 -> 0.00 | G108: 0.00
C109: 620 | D109: Logiciels | E109: 0.00 | F109: 0.00 | G109: 0.00
C110: 621 | D110: Brevets et licenses | E110: 0.00 | F110: 0.00 | G110: 0.00
C111: 629 | D111: Autres immobilisations incorporelles | E111: 0.00 | F111: 0.00 | G111: 0.00
B113: 63 | D113: Subventions acquis des investissements | E113: =E114+E115+E116+E117+E118+E119+E120+E121+E122 -> 143,994.00 | F113: =F114+F115+F116+F117+F118+F119+F120+F121+F122 -> 0.00 | G113: 143,994.00
C114: 630 | D114: Confédération | E114: 0.00 | F114: 0.00 | G114: 0.00
C115: 631 | D115: Cantons et concordats | E115: 0.00 | F115: 0.00 | G115: 0.00
C116: 632 | D116: Communes et associations intercommunales | E116: 143,994.00 | F116: 0.00 | G116: 143,994.00
C117: 633 | D117: Assurances sociales publiques | E117: 0.00 | F117: 0.00 | G117: 0.00
C118: 634 | D118: Entreprises publiques | E118: 0.00 | F118: 0.00 | G118: 0.00
C119: 635 | D119: Entreprises privées | E119: 0.00 | F119: 0.00 | G119: 0.00
C120: 636 | D120: Organisations privées à but non lucratif | E120: 0.00 | F120: 0.00 | G120: 0.00
C121: 637 | D121: Ménages privés | E121: 0.00 | F121: 0.00 | G121: 0.00
C122: 638 | D122: Etrangers | E122: 0.00 | F122: 0.00 | G122: 0.00
B124: 64 | D124: Remboursement de prêts | E124: =E125+E126+E127+E128+E129+E130+E131+E132+E133 -> 0.00 | F124: =F125+F126+F127+F128+F129+F130+F131+F132+F133 -> 0.00 | G124: 0.00
C125: 640 | D125: Confédération | E125: 0.00 | F125: 0.00 | G125: 0.00
C126: 641 | D126: Cantons et concordats | E126: 0.00 | F126: 0.00 | G126: 0.00
C127: 642 | D127: Communes et associations intercommunales | E127: 0.00 | F127: 0.00 | G127: 0.00
C128: 643 | D128: Assurances sociales publiques | E128: 0.00 | F128: 0.00 | G128: 0.00
C129: 644 | D129: Entreprises publiques | E129: 0.00 | F129: 0.00 | G129: 0.00
C130: 645 | D130: Entreprises privées | E130: 0.00 | F130: 0.00 | G130: 0.00
C131: 646 | D131: Organisations privées à but non lucratif | E131: 0.00 | F131: 0.00 | G131: 0.00
C132: 647 | D132: Ménages privés | E132: 0.00 | F132: 0.00 | G132: 0.00
C133: 648 | D133: Etrangers | E133: 0.00 | F133: 0.00 | G133: 0.00
B135: 65 | D135: Transferts de participations et de capital social dans le PF | E135: =E136+E137+E138+E139+E140+E141+E142+E143+E144 -> 0.00 | F135: =F136+F137+F138+F139+F140+F141+F142+F143+F144 -> 0.00 | G135: =E135-F135 -> 0.00
C136: 650 | D136: Confédération | E136: 0.00 | F136: 0.00 | G136: 0.00
C137: 651 | D137: Cantons et concordats | E137: 0.00 | F137: 0.00 | G137: 0.00
C138: 652 | D138: Communes et associations intercommunales | E138: 0.00 | F138: 0.00 | G138: 0.00
C139: 653 | D139: Assurances sociales publiques | E139: 0.00 | F139: 0.00 | G139: 0.00
C140: 654 | D140: Entreprises publiques | E140: 0.00 | F140: 0.00 | G140: 0.00
C141: 655 | D141: Entreprises privées | E141: 0.00 | F141: 0.00 | G141: 0.00
C142: 656 | D142: Organisations privées à but non lucratif | E142: 0.00 | F142: 0.00 | G142: 0.00
C143: 657 | D143: Ménages privés | E143: 0.00 | F143: 0.00 | G143: 0.00
C144: 658 | D144: Etrangers | E144: 0.00 | F144: 0.00 | G144: 0.00
B146: 66 | D146: Remboursements de propres subventions des investissements | E146: =E147+E148+E149+E150+E151+E152+E153+E154+E155 -> 0.00 | F146: =F147+F148+F149+F150+F151+F152+F153+F154+F155 -> 0.00 | G146: 0.00
C147: 660 | D147: Confédération | E147: 0.00 | F147: 0.00 | G147: 0.00
C148: 661 | D148: Cantons et concordats | E148: 0.00 | F148: 0.00 | G148: 0.00
C149: 662 | D149: Communes et associations intercommunales | E149: 0.00 | F149: 0.00 | G149: 0.00
C150: 663 | D150: Assurances sociales publiques | E150: 0.00 | F150: 0.00 | G150: 0.00
C151: 664 | D151: Entreprises publiques | E151: 0.00 | F151: 0.00 | G151: 0.00
C152: 665 | D152: Entreprises privées | E152: 0.00 | F152: 0.00 | G152: 0.00
C153: 666 | D153: Organisations privées à but non lucratif | E153: 0.00 | F153: 0.00 | G153: 0.00
C154: 667 | D154: Ménages privés | E154: 0.00 | F154: 0.00 | G154: 0.00
C155: 668 | D155: Etrangers | E155: 0.00 | F155: 0.00 | G155: 0.00
B157: 67 | D157: Subventions des investissements à redistribuer | E157: =E158+E159+E160+E161+E162+E163+E164+E165+E166 -> 0.00 | F157: =F158+F159+F160+F161+F162+F163+F164+F165+F166 -> 0.00 | G157: 0.00
C158: 670 | D158: Confédération | E158: 0.00 | F158: 0.00 | G158: 0.00
C159: 671 | D159: Cantons et concordats | E159: 0.00 | F159: 0.00 | G159: 0.00
C160: 672 | D160: Communes et associations intercommunales | E160: 0.00 | F160: 0.00 | G160: 0.00
C161: 673 | D161: Assurances sociales publiques | E161: 0.00 | F161: 0.00 | G161: 0.00
C162: 674 | D162: Entreprises publiques | E162: 0.00 | F162: 0.00 | G162: 0.00
C163: 675 | D163: Entreprises privées | E163: 0.00 | F163: 0.00 | G163: 0.00
C164: 676 | D164: Organisations privées à but non lucratif | E164: 0.00 | F164: 0.00 | G164: 0.00
C165: 677 | D165: Ménages privés | E165: 0.00 | F165: 0.00 | G165: 0.00
C166: 678 | D166: Etrangers | E166: 0.00 | F166: 0.00 | G166: 0.00
B168: 68 | D168: Recettes extraordinaires des investissements | E168: =E169+E170+E171+E172+E173+E174+E175 -> 57,376.90 | F168: =F169+F170+F171+F172+F173+F174+F175 -> 520,000.00 | G168: -462,623.10
C169: 680 | D169: Immobilisations corporelles | E169: 0.00 | F169: 0.00 | G169: 0.00
C170: 682 | D170: Immobilisations incorporelles | E170: 0.00 | F170: 0.00 | G170: 0.00
C171: 683 | D171: Subventions exraordinaires acquises des investissements | E171: 0.00 | F171: 0.00 | G171: 0.00
C172: 684 | D172: Prêts | E172: 0.00 | F172: 0.00 | G172: 0.00
C173: 685 | D173: Participations et capital social | E173: 0.00 | F173: 0.00 | G173: 0.00
C174: 686 | D174: Propres subventions des investissements | E174: 0.00 | F174: 0.00 | G174: 0.00
C175: 689 | D175: Autres recettes extraordinaires des investissements | E175: 57,376.90 | F175: 520,000.00 | G175: -462,623.10
B177: 69 | D177: Report au bilan des dépenses d'investissements | E177: =E178 -> 1,817,467.61 | F177: =F178 -> 1,961,429.61 | G177: -143,962.00
C178: 690 | D178: Report au bilan des dépenses d'investissements | E178: 1,817,467.61 | F178: 1,961,429.61 | G178: -143,962.00
D182: Investissements nets | E182: =E4-E87 -> 1,497,456.71 | F182: =F4-F87 -> 1,441,429.61 | G182: 56,027.10
A187: Comptes des investissements | E187: 2021 | F187: 2020 | G187: Variation
A188: Comptes consolidés de l'ensemble des communes et par district | E188: 265 | F188: 270 | G188: =E188-F188 -> -5
E189: Bourrignon | F189: Bourrignon | G189: Bourrignon
A190: 5 | D190: Dépenses d'investissements | E190: 350,105.49 | F190: =F191+F201+F211+F216+F227+F238+F249+F260 -> 79,668.10 | G190: =E190-F190 -> 270,437.39
B191: 50 | D191: Immobilisations corporelles | E191: 350,105.49 | F191: =F192+F193+F194+F195+F196+F197+F198+F199 -> 79,668.10 | G191: =E191-F191 -> 270,437.39
C192: 500 | D192: Terrains | E192: 0.00 | F192: 0.00 | G192: =E192-F192 -> 0.00
C193: 501 | D193: Routes et voies de communications | E193: 344,755.49 | F193: 3,231.00 | G193: =E193-F193 -> 341,524.49
C194: 502 | D194: Aménagements des cours d'eau | E194: 0.00 | F194: 0.00 | G194: 0.00
C195: 503 | D195: Autres travaux et ouvrages de génie civil | E195: 0.00 | F195: 0.00 | G195: 0.00
C196: 504 | D196: Bâtiments | E196: 5,350.00 | F196: 76,437.10 | G196: -71,087.10
C197: 505 | D197: Forêts | E197: 0.00 | F197: 0.00 | G197: 0.00
C198: 506 | D198: Biens mobiliers | E198: 0.00 | F198: 0.00 | G198: 0.00
C199: 509 | D199: Autres immobilisation corporelles | E199: 0.00 | F199: 0.00 | G199: 0.00
B201: 51 | D201: Investissement pour le compte de tiers | E201: 0.00 | F201: =F202+F203+F204+F205+F206+F207+F208+F209 -> 0.00 | G201: =E201-F201 -> 0.00
C202: 510 | D202: Terrains | E202: 0.00 | F202: 0.00 | G202: 0.00
C203: 511 | D203: Routes et voies de communications | E203: 0.00 | F203: 0.00 | G203: 0.00
C204: 512 | D204: Aménagements des cours d'eau | E204: 0.00 | F204: 0.00 | G204: 0.00
C205: 513 | D205: Autres travaux et ouvrages de génie civil | E205: 0.00 | F205: 0.00 | G205: 0.00
C206: 514 | D206: Bâtiments | E206: 0.00 | F206: 0.00 | G206: 0.00
C207: 515 | D207: Forêts | E207: 0.00 | F207: 0.00 | G207: 0.00
C208: 516 | D208: Biens mobiliers | E208: 0.00 | F208: 0.00 | G208: 0.00
C209: 519 | D209: Autres immobilisation corporelles | E209: 0.00 | F209: 0.00 | G209: 0.00
B211: 52 | D211: Immobilisations incorporelles | E211: 0.00 | F211: =F212+F213+F214 -> 0.00 | G211: =E211-F211 -> 0.00
C212: 520 | D212: Logiciels | E212: 0.00 | F212: 0.00 | G212: 0.00
C213: 521 | D213: Brevets et licenses | E213: 0.00 | F213: 0.00 | G213: 0.00
C214: 529 | D214: Autres immobilisations incorporelles | E214: 0.00 | F214: 0.00 | G214: 0.00
B216: 54 | D216: Prêts | E216: 0.00 | F216: =F217+F218+F219+F220+F221+F222+F223+F224+F225 -> 0.00 | G216: =E216-F216 -> 0.00
C217: 540 | D217: Confédération | E217: 0.00 | F217: 0.00 | G217: 0.00
C218: 541 | D218: Cantons et concordats | E218: 0.00 | F218: 0.00 | G218: 0.00
C219: 542 | D219: Communes et associations intercommunales | E219: 0.00 | F219: 0.00 | G219: 0.00
C220: 543 | D220: Assurances sociales publiques | E220: 0.00 | F220: 0.00 | G220: 0.00
C221: 544 | D221: Entreprises publiques | E221: 0.00 | F221: 0.00 | G221: 0.00
C222: 545 | D222: Entreprises privées | E222: 0.00 | F222: 0.00 | G222: 0.00
C223: 546 | D223: Organisations privées à but non lucratif | E223: 0.00 | F223: 0.00 | G223: 0.00
C224: 547 | D224: Ménages privés | E224: 0.00 | F224: 0.00 | G224: 0.00
C225: 548 | D225: Etrangers | E225: 0.00 | F225: 0.00 | G225: 0.00
B227: 55 | D227: Participations et capital social | E227: 0.00 | F227: =F228+F229+F230+F231+F232+F233+F234+F235+F236 -> 0.00 | G227: =E227-F227 -> 0.00
C228: 550 | D228: Confédération | E228: 0.00 | F228: 0.00 | G228: 0.00
C229: 551 | D229: Cantons et concordats | E229: 0.00 | F229: 0.00 | G229: 0.00
C230: 552 | D230: Communes et associations intercommunales | E230: 0.00 | F230: 0.00 | G230: 0.00
C231: 553 | D231: Assurances sociales publiques | E231: 0.00 | F231: 0.00 | G231: 0.00
... 8870 more rows

Sheet Endettement (hidden)
A1: Tableau de l'endettement
A2: Ensemble des communes
C4: 2021 | D4: 2020 | E4: Variation
C5: 947 | D5: 923 | E5: =C5-D5 -> 24
C6: Boécourt | D6: Boécourt | E6: =D6 -> Boécourt
A7: 10 | B7: Patrimoine financier | C7: 6,215,834.74 | D7: 6,025,500.69 | E7: =C7-D7 -> 190,334.05
A9: 20 | B9: Capitaux de tiers | C9: 10,597,593.46 | D9: 9,136,260.52 | E9: 1,461,332.94
A11: 200 | B11: Engagements courant | C11: 0.00 | D11: 3,771.65 | E11: -3,771.65
A13: 201 | B13: Engagements financiers à court terme | C13: 5,748,056.36 | D13: 3,909,040.76 | E13: 1,839,015.60
A15: 206 | B15: Engagements financiers à long terme | C15: 4,604,400.00 | D15: 4,874,949.96 | E15: -270,549.96
A17: 2016 | B17: Instruments financiers dérivés | C17: 0.00 | D17: 0.00 | E17: 0.00
B20: Endettement brut | C20: 10,352,456.36 | D20: 8,787,762.37 | E20: 1,564,693.99
B21: Par habitant | C21: 10,931.84 | D21: 9,520.87 | E21: 1,410.97
B23: Endettement net | C23: 4,381,758.72 | D23: 3,110,759.83 | E23: 1,270,998.89
B24: Par habitant | C24: 4,626.99 | D24: 3,370.27 | E24: 1,256.72
C29: 2021 | D29: 2020 | E29: Variation
C30: 265 | D30: 270 | E30: =C30-D30 -> -5
C31: Bourrignon | D31: Bourrignon | E31: =D31 -> Bourrignon
A32: 10 | B32: Patrimoine financier | C32: 1,141,851.18 | D32: 1,369,739.14 | E32: =C32-D32 -> -227,887.96
A34: 20 | B34: Capitaux de tiers | C34: 2,476,025.20 | D34: 2,523,210.25 | E34: =C34-D34 -> -47,185.05
A36: 200 | B36: Engagements courant | C36: 96,415.10 | D36: 44,599.00 | E36: =C36-D36 -> 51,816.10
A38: 201 | B38: Engagements financiers à court terme | C38: 308,700.00 | D38: 112,700.00 | E38: =C38-D38 -> 196,000.00
A40: 206 | B40: Engagements financiers à long terme | C40: 2,069,199.60 | D40: 2,330,502.85 | E40: =C40-D40 -> -261,303.25
A42: 2016 | B42: Instruments financiers dérivés | C42: 0.00 | D42: 0.00 | E42: =C42-D42 -> 0.00
B45: Endettement brut | C45: 2,474,314.70 | D45: 2,487,801.85 | E45: =C45-D45 -> -13,487.15
B46: Par habitant | C46: 9,337.04 | D46: 9,214.08 | E46: 122.96
B48: Endettement net | C48: 1,334,174.02 | D48: 1,153,471.11 | E48: =C48-D48 -> 180,702.91
B49: Par habitant | C49: 5,034.62 | D49: 4,272.12 | E49: 762.50
C54: 2021 | D54: 2020 | E54: Variation
C55: 469 | D55: 485 | E55: =C55-D55 -> -16
C56: Châtillon | D56: Châtillon | E56: =D56 -> Châtillon
A57: 10 | B57: Patrimoine financier | C57: 3,560,116.59 | D57: 4,309,212.78 | E57: =C57-D57 -> -749,096.19
A59: 20 | B59: Capitaux de tiers | C59: 6,054,411.89 | D59: 6,461,558.52 | E59: =C59-D59 -> -407,146.63
A61: 200 | B61: Engagements courant | C61: 204,208.40 | D61: 112,759.55 | E61: =C61-D61 -> 91,448.85
A63: 201 | B63: Engagements financiers à court terme | C63: 140,800.00 | D63: 180,090.75 | E63: =C63-D63 -> -39,290.75
A65: 206 | B65: Engagements financiers à long terme | C65: 5,177,800.00 | D65: 5,359,040.00 | E65: =C65-D65 -> -181,240.00
A67: 2016 | B67: Instruments financiers dérivés | C67: 0.00 | D67: 0.00 | E67: =C67-D67 -> 0.00
B70: Endettement brut | C70: 5,522,808.40 | D70: 5,651,890.30 | E70: =C70-D70 -> -129,081.90
B71: Par habitant | C71: 11,775.71 | D71: 11,653.38 | E71: 122.33
B73: Endettement net | C73: 2,494,295.30 | D73: 2,152,345.74 | E73: =C73-D73 -> 341,949.56
B74: Par habitant | C74: 5,318.33 | D74: 4,437.83 | E74: 880.50
C79: 2021 | D79: 2020 | E79: Variation
C80: 439 | D80: 446 | E80: =C80-D80 -> -7
C81: Courchapoix | D81: Courchapoix | E81: =D81 -> Courchapoix
A82: 10 | B82: Patrimoine financier | C82: 4,659,729.11 | D82: 4,657,259.62 | E82: =C82-D82 -> 2,469.49
A84: 20 | B84: Capitaux de tiers | C84: 4,819,394.95 | D84: 4,936,358.18 | E84: =C84-D84 -> -116,963.23
A86: 200 | B86: Engagements courant | C86: 288,807.18 | D86: 235,227.35 | E86: =C86-D86 -> 53,579.83
A88: 201 | B88: Engagements financiers à court terme | C88: 252,741.72 | D88: 352,998.33 | E88: =C88-D88 -> -100,256.61
A90: 206 | B90: Engagements financiers à long terme | C90: 3,890,756.96 | D90: 3,992,448.21 | E90: =C90-D90 -> -101,691.25
A92: 2016 | B92: Instruments financiers dérivés | C92: 0.00 | D92: 0.00 | E92: =C92-D92 -> 0.00
B95: Endettement brut | C95: 4,432,305.86 | D95: 4,580,673.89 | E95: =C95-D95 -> -148,368.03
B96: Par habitant | C96: 10,096.37 | D96: 10,270.57 | E96: -174.20
B98: Endettement net | C98: 159,665.84 | D98: 279,098.56 | E98: =C98-D98 -> -119,432.72
B99: Par habitant | C99: 363.70 | D99: 625.78 | E99: -262.08
C104: 2021 | D104: 2020 | E104: Variation
C105: 3,728 | D105: 3,631 | E105: =C105-D105 -> 97
C106: Courrendlin | D106: Courrendlin | E106: =D106 -> Courrendlin
A107: 10 | B107: Patrimoine financier | C107: 15,358,859.32 | D107: 15,173,301.85 | E107: =C107-D107 -> 185,557.47
A109: 20 | B109: Capitaux de tiers | C109: 24,955,383.65 | D109: 26,343,468.57 | E109: =C109-D109 -> -1,388,084.92
A111: 200 | B111: Engagements courant | C111: 770,196.63 | D111: 600,201.07 | E111: =C111-D111 -> 169,995.56
A113: 201 | B113: Engagements financiers à court terme | C113: 5,587,130.74 | D113: 4,511,771.70 | E113: =C113-D113 -> 1,075,359.04
A115: 206 | B115: Engagements financiers à long terme | C115: 17,756,300.00 | D115: 20,219,956.25 | E115: =C115-D115 -> -2,463,656.25
A117: 2016 | B117: Instruments financiers dérivés | C117: 0.00 | D117: 0.00 | E117: =C117-D117 -> 0.00
B120: Endettement brut | C120: 24,113,627.37 | D120: 25,331,929.02 | E120: =C120-D120 -> -1,218,301.65
B121: Par habitant | C121: 6,468.25 | D121: 6,976.57 | E121: -508.32
B123: Endettement net | C123: 9,596,524.33 | D123: 11,170,166.72 | E123: =C123-D123 -> -1,573,642.39
B124: Par habitant | C124: 2,574.17 | D124: 3,076.33 | E124: -502.16
C129: 2021 | D129: 2020 | E129: Variation
C130: 3,345 | D130: 3,313 | E130: =C130-D130 -> 32
C131: Courroux | D131: Courroux | E131: =D131 -> Courroux
A132: 10 | B132: Patrimoine financier | C132: 8,576,665.47 | D132: 8,929,891.38 | E132: =C132-D132 -> -353,225.91
A134: 20 | B134: Capitaux de tiers | C134: 24,713,296.99 | D134: 25,837,679.66 | E134: =C134-D134 -> -1,124,382.67
A136: 200 | B136: Engagements courant | C136: 1,390,243.50 | D136: 1,247,071.52 | E136: =C136-D136 -> 143,171.98
A138: 201 | B138: Engagements financiers à court terme | C138: 6,015,550.00 | D138: 5,916,914.00 | E138: =C138-D138 -> 98,636.00
A140: 206 | B140: Engagements financiers à long terme | C140: 16,190,550.00 | D140: 16,975,600.00 | E140: =C140-D140 -> -785,050.00
A142: 2016 | B142: Instruments financiers dérivés | C142: 0.00 | D142: 0.00 | E142: =C142-D142 -> 0.00
B145: Endettement brut | C145: 23,596,343.50 | D145: 24,139,585.52 | E145: =C145-D145 -> -543,242.02
B146: Par habitant | C146: 7,054.21 | D146: 7,286.32 | E146: -232.11
B148: Endettement net | C148: 16,136,631.52 | D148: 16,907,788.28 | E148: =C148-D148 -> -771,156.76
B149: Par habitant | C149: 4,824.11 | D149: 5,103.47 | E149: -279.36
C154: 2021 | D154: 2020 | E154: Variation
C155: 2,652 | D155: 2,644 | E155: =C155-D155 -> 8
C156: Courtételle | D156: Courtételle | E156: =D156 -> Courtételle
A157: 10 | B157: Patrimoine financier | C157: 10,901,550.18 | D157: 10,459,838.14 | E157: =C157-D157 -> 441,712.04
A159: 20 | B159: Capitaux de tiers | C159: 11,514,993.67 | D159: 11,484,688.11 | E159: =C159-D159 -> 30,305.56
A161: 200 | B161: Engagements courant | C161: 386,006.85 | D161: 201,552.20 | E161: =C161-D161 -> 184,454.65
A163: 201 | B163: Engagements financiers à court terme | C163: 390,000.00 | D163: 0.00 | E163: =C163-D163 -> 390,000.00
A165: 206 | B165: Engagements financiers à long terme | C165: 9,758,495.13 | D165: 10,391,906.69 | E165: =C165-D165 -> -633,411.56
A167: 2016 | B167: Instruments financiers dérivés | C167: 0.00 | D167: 0.00 | E167: =C167-D167 -> 0.00
B170: Endettement brut | C170: 10,534,501.98 | D170: 10,593,458.89 | E170: =C170-D170 -> -58,956.91
B171: Par habitant | C171: 3,972.29 | D171: 4,006.60 | E171: -34.32
B173: Endettement net | C173: 613,443.49 | D173: 1,024,849.97 | E173: =C173-D173 -> -411,406.48
B174: Par habitant | C174: 231.31 | D174: 387.61 | E174: -156.30
C179: 2021 | D179: 2020 | E179: Variation
C180: 12,479 | D180: 12,618 | E180: =C180-D180 -> -139
C181: Delémont | D181: Delémont | E181: =D181 -> Delémont
A182: 10 | B182: Patrimoine financier | C182: 50,722,063.13 | D182: 48,329,637.41 | E182: =C182-D182 -> 2,392,425.72
A184: 20 | B184: Capitaux de tiers | C184: 146,151,956.10 | D184: 139,191,397.22 | E184: =C184-D184 -> 6,960,558.88
A186: 200 | B186: Engagements courant | C186: 10,226,270.39 | D186: 9,604,614.66 | E186: =C186-D186 -> 621,655.73
A188: 201 | B188: Engagements financiers à court terme | C188: 37,051,659.00 | D188: 49,004,578.50 | E188: =C188-D188 -> -11,952,919.50
A190: 206 | B190: Engagements financiers à long terme | C190: 95,091,195.15 | D190: 74,043,576.55 | E190: =C190-D190 -> 21,047,618.60
A192: 2016 | B192: Instruments financiers dérivés | C192: 0.00 | D192: 0.00 | E192: =C192-D192 -> 0.00
B195: Endettement brut | C195: 142,369,124.54 | D195: 132,652,769.71 | E195: =C195-D195 -> 9,716,354.83
B196: Par habitant | C196: 11,408.70 | D196: 10,512.98 | E196: 895.72
B198: Endettement net | C198: 95,429,892.97 | D198: 90,861,759.81 | E198: =C198-D198 -> 4,568,133.16
B199: Par habitant | C199: 7,647.24 | D199: 7,200.96 | E199: 446.28
C204: 2021 | D204: 2020 | E204: Variation
C205: 1,359 | D205: 1,371 | E205: =C205-D205 -> -12
C206: Develier | D206: Develier | E206: =D206 -> Develier
A207: 10 | B207: Patrimoine financier | C207: 3,552,476.33 | D207: 4,231,787.96 | E207: =C207-D207 -> -679,311.63
A209: 20 | B209: Capitaux de tiers | C209: 6,829,297.82 | D209: 7,307,071.83 | E209: =C209-D209 -> -477,774.01
A211: 200 | B211: Engagements courant | C211: 313,883.77 | D211: 409,615.93 | E211: =C211-D211 -> -95,732.16
A213: 201 | B213: Engagements financiers à court terme | C213: 267,000.00 | D213: 267,000.00 | E213: =C213-D213 -> 0.00
A215: 206 | B215: Engagements financiers à long terme | C215: 6,134,829.75 | D215: 6,416,829.75 | E215: =C215-D215 -> -282,000.00
A217: 2016 | B217: Instruments financiers dérivés | C217: 0.00 | D217: 0.00 | E217: =C217-D217 -> 0.00
B220: Endettement brut | C220: 6,715,713.52 | D220: 7,093,445.68 | E220: =C220-D220 -> -377,732.16
B221: Par habitant | C221: 4,941.66 | D221: 5,173.92 | E221: -232.26
B223: Endettement net | C223: 3,276,821.49 | D223: 3,075,283.87 | E223: =C223-D223 -> 201,537.62
B224: Par habitant | C224: 2,411.20 | D224: 2,243.10 | E224: 168.11
C229: 2021 | D229: 2020 | E229: Variation
C230: 117 | D230: 118 | E230: =C230-D230 -> -1
C231: Ederswiler | D231: Ederswiler | E231: =D231 -> Ederswiler
A232: 10 | B232: Patrimoine financier | C232: 387,086.74 | D232: 401,366.44 | E232: =C232-D232 -> -14,279.70
A234: 20 | B234: Capitaux de tiers | C234: 1,044,108.48 | D234: 862,038.84 | E234: =C234-D234 -> 182,069.64
A236: 200 | B236: Engagements courant | C236: 78,133.58 | D236: 0.00 | E236: =C236-D236 -> 78,133.58
A238: 201 | B238: Engagements financiers à court terme | C238: 0.00 | D238: 0.00 | E238: =C238-D238 -> 0.00
A240: 206 | B240: Engagements financiers à long terme | C240: 780,304.90 | D240: 825,716.90 | E240: =C240-D240 -> -45,412.00
A242: 2016 | B242: Instruments financiers dérivés | C242: 0.00 | D242: 0.00 | E242: =C242-D242 -> 0.00
B245: Endettement brut | C245: 858,438.48 | D245: 825,716.90 | E245: =C245-D245 -> 32,721.58
B246: Par habitant | C246: 7,337.08 | D246: 6,997.60 | E246: 339.48
B248: Endettement net | C248: 657,021.74 | D248: 460,672.40 | E248: =C248-D248 -> 196,349.34
B249: Par habitant | C249: 5,615.57 | D249: 3,904.00 | E249: 1,711.57
C254: 2021 | D254: 2020 | E254: Variation
C255: 7,261 | D255: 7,167 | E255: =C255-D255 -> 94
C256: Haute-Sorne | D256: Haute-Sorne | E256: =D256 -> Haute-Sorne
A257: 10 | B257: Patrimoine financier | C257: 18,670,168.03 | D257: 19,270,794.45 | E257: =C257-D257 -> -600,626.42
A259: 20 | B259: Capitaux de tiers | C259: 45,801,119.90 | D259: 46,214,165.72 | E259: =C259-D259 -> -413,045.82
A261: 200 | B261: Engagements courant | C261: 1,915,537.59 | D261: 1,453,277.22 | E261: =C261-D261 -> 462,260.37
A263: 201 | B263: Engagements financiers à court terme | C263: 16,290,985.55 | D263: 12,857,311.64 | E263: =C263-D263 -> 3,433,673.91
A265: 206 | B265: Engagements financiers à long terme | C265: 25,935,350.15 | D265: 30,426,335.70 | E265: =C265-D265 -> -4,490,985.55
A267: 2016 | B267: Instruments financiers dérivés | C267: 0.00 | D267: 0.00 | E267: =C267-D267 -> 0.00
B270: Endettement brut | C270: 44,141,873.29 | D270: 44,736,924.56 | E270: =C270-D270 -> -595,051.27
B271: Par habitant | C271: 6,079.31 | D271: 6,242.07 | E271: -162.76
B273: Endettement net | C273: 27,130,951.87 | D273: 26,943,371.27 | E273: =C273-D273 -> 187,580.60
B274: Par habitant | C274: 3,736.53 | D274: 3,759.37 | E274: -22.83
C279: 2021 | D279: 2020 | E279: Variation
C280: 538 | D280: 528 | E280: =C280-D280 -> 10
C281: Mervelier | D281: Mervelier | E281: =D281 -> Mervelier
A282: 10 | B282: Patrimoine financier | C282: 2,335,602.86 | D282: 2,306,934.99 | E282: =C282-D282 -> 28,667.87
A284: 20 | B284: Capitaux de tiers | C284: 3,495,201.54 | D284: 3,674,228.88 | E284: =C284-D284 -> -179,027.34
A286: 200 | B286: Engagements courant | C286: 103,015.62 | D286: 97,190.07 | E286: =C286-D286 -> 5,825.55
A288: 201 | B288: Engagements financiers à court terme | C288: 1,214,136.27 | D288: 1,264,473.87 | E288: =C288-D288 -> -50,337.60
A290: 206 | B290: Engagements financiers à long terme | C290: 1,776,635.35 | D290: 1,797,463.35 | E290: =C290-D290 -> -20,828.00
A292: 2016 | B292: Instruments financiers dérivés | C292: 0.00 | D292: 0.00 | E292: =C292-D292 -> 0.00
B295: Endettement brut | C295: 3,093,787.24 | D295: 3,159,127.29 | E295: =C295-D295 -> -65,340.05
B296: Par habitant | C296: 5,750.53 | D296: 5,983.20 | E296: -232.66
B298: Endettement net | C298: 1,159,598.68 | D298: 1,367,293.89 | E298: =C298-D298 -> -207,695.21
B299: Par habitant | C299: 2,155.39 | D299: 2,589.57 | E299: -434.18
C304: 2021 | D304: 2020 | E304: Variation
C305: 111 | D305: 108 | E305: =C305-D305 -> 3
C306: Mettembert | D306: Mettembert | E306: =D306 -> Mettembert
A307: 10 | B307: Patrimoine financier | C307: 533,749.44 | D307: 340,332.25 | E307: =C307-D307 -> 193,417.19
A309: 20 | B309: Capitaux de tiers | C309: 574,965.75 | D309: 585,366.75 | E309: =C309-D309 -> -10,401.00
A311: 200 | B311: Engagements courant | C311: 537.75 | D311: 25,537.75 | E311: =C311-D311 -> -25,000.00
A313: 201 | B313: Engagements financiers à court terme | C313: 120,408.18 | D313: 125,256.50 | E313: =C313-D313 -> -4,848.32
A315: 206 | B315: Engagements financiers à long terme | C315: 376,450.00 | D315: 385,600.00 | E315: =C315-D315 -> -9,150.00
A317: 2016 | B317: Instruments financiers dérivés | C317: 0.00 | D317: 0.00 | E317: =C317-D317 -> 0.00
B320: Endettement brut | C320: 497,395.93 | D320: 536,394.25 | E320: =C320-D320 -> -38,998.32
B321: Par habitant | C321: 4,481.04 | D321: 4,966.61 | E321: -485.57
B323: Endettement net | C323: 41,216.31 | D323: 245,034.50 | E323: =C323-D323 -> -203,818.19
B324: Par habitant | C324: 371.32 | D324: 2,268.84 | E324: -1,897.52
C329: 2021 | D329: 2020 | E329: Variation
C330: 421 | D330: 415 | E330: =C330-D330 -> 6
C331: Movelier | D331: Movelier | E331: =D331 -> Movelier
A332: 10 | B332: Patrimoine financier | C332: 1,346,191.77 | D332: 1,454,184.04 | E332: =C332-D332 -> -107,992.27
A334: 20 | B334: Capitaux de tiers | C334: 3,100,133.92 | D334: 3,329,882.66 | E334: =C334-D334 -> -229,748.74
A336: 200 | B336: Engagements courant | C336: 140,154.57 | D336: 266,808.41 | E336: =C336-D336 -> -126,653.84
A338: 201 | B338: Engagements financiers à court terme | C338: 0.00 | D338: 0.00 | E338: =C338-D338 -> 0.00
A340: 206 | B340: Engagements financiers à long terme | C340: 2,943,627.35 | D340: 3,046,722.25 | E340: =C340-D340 -> -103,094.90
A342: 2016 | B342: Instruments financiers dérivés | C342: 0.00 | D342: 0.00 | E342: =C342-D342 -> 0.00
B345: Endettement brut | C345: 3,083,781.92 | D345: 3,313,530.66 | E345: =C345-D345 -> -229,748.74
B346: Par habitant | C346: 7,324.90 | D346: 7,984.41 | E346: -659.51
B348: Endettement net | C348: 1,753,942.15 | D348: 1,875,698.62 | E348: =C348-D348 -> -121,756.47
B349: Par habitant | C349: 4,166.13 | D349: 4,519.76 | E349: -353.62
C354: 2021 | D354: 2020 | E354: Variation
C355: 346 | D355: 349 | E355: =C355-D355 -> -3
C356: Pleigne | D356: Pleigne | E356: =D356 -> Pleigne
A357: 10 | B357: Patrimoine financier | C357: 2,420,446.70 | D357: 2,240,322.35 | E357: =C357-D357 -> 180,124.35
A359: 20 | B359: Capitaux de tiers | C359: 4,169,598.16 | D359: 4,328,768.28 | E359: =C359-D359 -> -159,170.12
A361: 200 | B361: Engagements courant | C361: 61,278.31 | D361: 563,608.91 | E361: =C361-D361 -> -502,330.60
A363: 201 | B363: Engagements financiers à court terme | C363: 2,979,081.90 | D363: 2,512,156.62 | E363: =C363-D363 -> 466,925.28
A365: 206 | B365: Engagements financiers à long terme | C365: 1,060,911.00 | D365: 1,129,011.00 | E365: =C365-D365 -> -68,100.00
A367: 2016 | B367: Instruments financiers dérivés | C367: 0.00 | D367: 0.00 | E367: =C367-D367 -> 0.00
B370: Endettement brut | C370: 4,101,271.21 | D370: 4,204,776.53 | E370: =C370-D370 -> -103,505.32
B371: Par habitant | C371: 11,853.39 | D371: 12,048.07 | E371: -194.69
B373: Endettement net | C373: 1,749,151.46 | D373: 2,088,445.93 | E373: =C373-D373 -> -339,294.47
B374: Par habitant | C374: 5,055.35 | D374: 5,984.09 | E374: -928.73
C379: 2021 | D379: 2020 | E379: Variation
C380: 710 | D380: 687 | E380: =C380-D380 -> 23
C381: Rossemaison | D381: Rossemaison | E381: =D381 -> Rossemaison
... 543 more rows

Sheet Indicateurs financiers (hidden)
A1: Indicateurs financiers
B3: 2021 | C3: 2020 | D3: Variation / moyenne
B4: Boécourt | C4: Boécourt | D4: Boécourt
B5: 947 | C5: 923 | D5: =B5-C5 -> 24
A7: I. Quotient d'endettement net
A9: Endettement brut | B9: 10,352,456.36 | C9: 7,362,387.07 | D9: =B9-C9 -> 2,990,069.29
A11: Endettement net | B11: 4,381,758.71 | C11: 1,981,542.30 | D11: =B11-C11 -> 2,400,216.41
A13: Quotient d'endettement net | B13: 200.14 | C13: 73.96 | D13: =AVERAGE(B13:C13) -> 137.05
A16: II. Degré d'autofinancement
A18: Autofinancement | B18: 297,260.19 | C18: 832,459.83 | D18: =B18-C18 -> -535,199.64
A20: Degré d'autofinancement | B20: 19.85 | C20: 140.18 | D20: =AVERAGE(B20:C20) -> 80.01
A23: III. Quotité de la charge des intérêts | B23: 0.85 | C23: 0.08 | D23: =AVERAGE(B23:C23) -> 0.46
A25: IV. Dettes brutes par rapport aux revenus | B25: 416.66 | C25: 222.00 | D25: =AVERAGE(B25:C25) -> 319.33
A27: V. Quotité d'investissement | B27: 35.50 | C27: 17.33 | D27: =AVERAGE(B27:C27) -> 26.42
A29: VI. Quotité de la charge financière | B29: 12.20 | C29: 14.78 | D29: =AVERAGE(B29:C29) -> 13.49
A31: VII. Endettement net en francs par habitant | B31: 4,626.99 | C31: 2,146.85 | D31: =B31-C31 -> 2,480.14
A33: VIII. Quotité d'autofinancement (capacité) | B33: 11.96 | C33: 25.10 | D33: =AVERAGE(B33:C33) -> 18.53
A35: IX. Quotité de la charge des intérêts nets | B35: -2.50 | C35: -0.62 | D35: =AVERAGE(B35:C35) -> -1.56
A37: X. Quotient de l'excédent du bilan | B37: 94.51 | C37: 75.87 | D37: =AVERAGE(B37:C37) -> 85.19
B42: 2021 | C42: 2020 | D42: Variation / moyenne
B43: Bourrignon | C43: Bourrignon | D43: =B43 -> Bourrignon
B44: 265 | C44: 270 | D44: =B44-C44 -> -5
A46: I. Quotient d'endettement net
A48: Endettement brut | B48: 2,474,314.70 | C48: 1,694,059.85 | D48: =B48-C48 -> 780,254.85
A50: Endettement net | B50: 1,334,174.02 | C50: 347,500.05 | D50: =B50-C50 -> 986,673.97
A52: Quotient d'endettement net | B52: 218.67 | C52: 45.64 | D52: =AVERAGE(B52:C52) -> 132.15
A55: II. Degré d'autofinancement
A57: Autofinancement | B57: 48,899.03 | C57: 205,445.28 | D57: =B57-C57 -> -156,546.25
A59: Degré d'autofinancement | B59: 33.12 | C59: -96.06 | D59: =AVERAGE(B59:C59) -> -31.47
A62: III. Quotité de la charge des intérêts | B62: 2.29 | C62: 2.86 | D62: =AVERAGE(B62:C62) -> 2.58
A64: IV. Dettes brutes par rapport aux revenus | B64: 239.78 | C64: 239.11 | D64: =AVERAGE(B64:C64) -> 239.45
A66: V. Quotité d'investissement | B66: 26.20 | C66: 0.65 | D66: =AVERAGE(B66:C66) -> 13.42
A68: VI. Quotité de la charge financière | B68: 10.28 | C68: 9.97 | D68: =AVERAGE(B68:C68) -> 10.12
A70: VII. Endettement net en francs par habitant | B70: 5,034.62 | C70: 1,287.04 | D70: =B70-C70 -> 3,747.58
A72: VIII. Quotité d'autofinancement (capacité) | B72: 4.74 | C72: 29.00 | D72: =AVERAGE(B72:C72) -> 16.87
A74: IX. Quotité de la charge des intérêts nets | B74: 1.00 | C74: 2.65 | D74: =AVERAGE(B74:C74) -> 1.82
A76: X. Quotient de l'excédent du bilan | B76: 20.90 | C76: 34.10 | D76: =AVERAGE(B76:C76) -> 27.50
B81: 2021 | C81: 2020 | D81: Variation / moyenne
B82: Châtillon | C82: Châtillon | D82: =B82 -> Châtillon
B83: 469 | C83: 485 | D83: =B83-C83 -> -16
A85: I. Quotient d'endettement net
A87: Endettement brut | B87: 5,522,808.40 | C87: 5,594,890.30 | D87: =B87-C87 -> -72,081.90
A89: Endettement net | B89: 2,494,295.30 | C89: 2,113,085.39 | D89: =B89-C89 -> 381,209.91
A91: Quotient d'endettement net | B91: 239.76 | C91: 190.51 | D91: =AVERAGE(B91:C91) -> 215.14
A94: II. Degré d'autofinancement
A96: Autofinancement | B96: -36,646.30 | C96: -61,794.96 | D96: =B96-C96 -> 25,148.66
A98: Degré d'autofinancement | B98: -61.48 | C98: -3.64 | D98: =AVERAGE(B98:C98) -> -32.56
A101: III. Quotité de la charge des intérêts | B101: 3.68 | C101: 4.75 | D101: =AVERAGE(B101:C101) -> 4.21
A103: IV. Dettes brutes par rapport aux revenus | B103: 359.85 | C103: 485.98 | D103: =AVERAGE(B103:C103) -> 422.92
A105: V. Quotité d'investissement | B105: 16.37 | C105: 63.33 | D105: =AVERAGE(B105:C105) -> 39.85
A107: VI. Quotité de la charge financière | B107: 8.62 | C107: 7.05 | D107: =AVERAGE(B107:C107) -> 7.84
A109: VII. Endettement net en francs par habitant | B109: 5,318.33 | C109: 4,356.88 | D109: =B109-C109 -> 961.45
A111: VIII. Quotité d'autofinancement (capacité) | B111: -2.39 | C111: -5.37 | D111: =AVERAGE(B111:C111) -> -3.88
A113: IX. Quotité de la charge des intérêts nets | B113: -1.43 | C113: -0.47 | D113: =AVERAGE(B113:C113) -> -0.95
A115: X. Quotient de l'excédent du bilan | B115: -13.42 | C115: 27.66 | D115: =AVERAGE(B115:C115) -> 7.12
B120: 2021 | C120: 2020 | D120: Variation / moyenne
B121: Courchapoix | C121: Courchapoix | D121: =B121 -> Courchapoix
B122: 439 | C122: 446 | D122: =B122-C122 -> -7
A124: I. Quotient d'endettement net
A126: Endettement brut | B126: 4,432,305.86 | C126: 4,325,953.65 | D126: =B126-C126 -> 106,352.21
A128: Endettement net | B128: 153,665.84 | C128: 333,820.88 | D128: =B128-C128 -> -180,155.04
A130: Quotient d'endettement net | B130: 14.93 | C130: 29.84 | D130: =AVERAGE(B130:C130) -> 22.38
A133: II. Degré d'autofinancement
A135: Autofinancement | B135: 203,822.79 | C135: 189,395.10 | D135: =B135-C135 -> 14,427.69
A137: Degré d'autofinancement | B137: 166.68 | C137: -256.58 | D137: =AVERAGE(B137:C137) -> -44.95
A140: III. Quotité de la charge des intérêts | B140: 2.24 | C140: 5.30 | D140: =AVERAGE(B140:C140) -> 3.77
A142: IV. Dettes brutes par rapport aux revenus | B142: 228.54 | C142: 419.49 | D142: =AVERAGE(B142:C142) -> 324.02
A144: V. Quotité d'investissement | B144: 6.58 | C144: 14.52 | D144: =AVERAGE(B144:C144) -> 10.55
A146: VI. Quotité de la charge financière | B146: 7.28 | C146: 14.40 | D146: =AVERAGE(B146:C146) -> 10.84
A148: VII. Endettement net en francs par habitant | B148: 350.04 | C148: 748.48 | D148: =B148-C148 -> -398.44
A150: VIII. Quotité d'autofinancement (capacité) | B150: 10.51 | C150: 18.37 | D150: =AVERAGE(B150:C150) -> 14.44
A152: IX. Quotité de la charge des intérêts nets | B152: -0.97 | C152: -0.34 | D152: =AVERAGE(B152:C152) -> -0.66
A154: X. Quotient de l'excédent du bilan | B154: 113.89 | C154: 11.78 | D154: =AVERAGE(B154:C154) -> 62.83
B159: 2021 | C159: 2020 | D159: Variation / moyenne
B160: Courrendlin | C160: Courrendlin | D160: =B160 -> Courrendlin
B161: 3,728 | C161: 3,631 | D161: =B161-C161 -> 97
A163: I. Quotient d'endettement net
A165: Endettement brut | B165: 24,113,626.00 | C165: 22,913,378.00 | D165: =B165-C165 -> 1,200,248.00
A167: Endettement net | B167: 9,596,524.00 | C167: 11,170,167.00 | D167: =B167-C167 -> -1,573,643.00
A169: Quotient d'endettement net | B169: 103.28 | C169: 138.20 | D169: =AVERAGE(B169:C169) -> 120.74
A172: II. Degré d'autofinancement
A174: Autofinancement | B174: 2,000,296.57 | C174: 164.31 | D174: =B174-C174 -> 2,000,132.26
A176: Degré d'autofinancement | B176: 466.13 | C176: 0.01 | D176: =AVERAGE(B176:C176) -> 233.07
A179: III. Quotité de la charge des intérêts | B179: 1.89 | C179: 2.14 | D179: =AVERAGE(B179:C179) -> 2.01
A181: IV. Dettes brutes par rapport aux revenus | B181: 155.00 | C181: 305.27 | D181: =AVERAGE(B181:C181) -> 230.14
A183: V. Quotité d'investissement | B183: 4.14 | C183: 17.41 | D183: =AVERAGE(B183:C183) -> 10.78
A185: VI. Quotité de la charge financière | B185: 8.11 | C185: 8.76 | D185: =AVERAGE(B185:C185) -> 8.43
A187: VII. Endettement net en francs par habitant | B187: 2,574.17 | C187: 3,076.33 | D187: =B187-C187 -> -502.16
A189: VIII. Quotité d'autofinancement (capacité) | B189: 12.86 | C189: 0.00 | D189: =AVERAGE(B189:C189) -> 6.43
A191: IX. Quotité de la charge des intérêts nets | B191: -0.21 | C191: -5.40 | D191: =AVERAGE(B191:C191) -> -2.80
A193: X. Quotient de l'excédent du bilan | B193: 52.76 | C193: 60.29 | D193: =AVERAGE(B193:C193) -> 56.53
B198: 2021 | C198: 2020 | D198: Variation / moyenne
B199: Courroux | C199: Courroux | D199: =B199 -> Courroux
B200: 3,345 | C200: 3,313 | D200: =B200-C200 -> 32
A202: I. Quotient d'endettement net
A204: Endettement brut | B204: 23,596,343.50 | C204: 20,840,155.50 | D204: =B204-C204 -> 2,756,188.00
A206: Endettement net | B206: 16,136,631.52 | C206: 13,112,482.93 | D206: =B206-C206 -> 3,024,148.59
A208: Quotient d'endettement net | B208: 197.62 | C208: 146.21 | D208: =AVERAGE(B208:C208) -> 171.91
A211: II. Degré d'autofinancement
A213: Autofinancement | B213: 1,383,163.64 | C213: 1,876,600.28 | D213: =B213-C213 -> -493,436.64
A215: Degré d'autofinancement | B215: 255.01 | C215: 122.74 | D215: =AVERAGE(B215:C215) -> 188.87
A218: III. Quotité de la charge des intérêts | B218: 1.09 | C218: 1.08 | D218: =AVERAGE(B218:C218) -> 1.08
A220: IV. Dettes brutes par rapport aux revenus | B220: 175.39 | C220: 222.03 | D220: =AVERAGE(B220:C220) -> 198.71
A222: V. Quotité d'investissement | B222: 13.31 | C222: 17.79 | D222: =AVERAGE(B222:C222) -> 15.55
A224: VI. Quotité de la charge financière | B224: 8.76 | C224: 9.97 | D224: =AVERAGE(B224:C224) -> 9.36
A226: VII. Endettement net en francs par habitant | B226: 4,824.11 | C226: 3,957.89 | D226: =B226-C226 -> 866.22
A228: VIII. Quotité d'autofinancement (capacité) | B228: 10.28 | C228: 19.99 | D228: =AVERAGE(B228:C228) -> 15.14
A230: IX. Quotité de la charge des intérêts nets | B230: 0.77 | C230: 0.99 | D230: =AVERAGE(B230:C230) -> 0.88
A232: X. Quotient de l'excédent du bilan | B232: 25.90 | C232: 16.41 | D232: =AVERAGE(B232:C232) -> 21.16
B237: 2021 | C237: 2020 | D237: Variation / moyenne
B238: Courtételle | C238: Courtételle | D238: =B238 -> Courtételle
B239: 2,652 | C239: 2,644 | D239: =B239-C239 -> 8
A241: I. Quotient d'endettement net
A243: Endettement brut | B243: 10,561,501.98 | C243: 6,817,290.69 | D243: =B243-C243 -> 3,744,211.29
A245: Endettement net | B245: 613,443.49 | C245: 1,024,849.97 | D245: =B245-C245 -> -411,406.48
A247: Quotient d'endettement net | B247: 9.59 | C247: 16.24 | D247: =AVERAGE(B247:C247) -> 12.92
A250: II. Degré d'autofinancement
A252: Autofinancement | B252: 1,028,696.82 | C252: 486,979.09 | D252: =B252-C252 -> 541,717.73
A254: Degré d'autofinancement | B254: 167.11 | C254: 38.45 | D254: =AVERAGE(B254:C254) -> 102.78
A257: III. Quotité de la charge des intérêts | B257: 0.42 | C257: 0.75 | D257: =AVERAGE(B257:C257) -> 0.58
A259: IV. Dettes brutes par rapport aux revenus | B259: 102.12 | C259: 96.36 | D259: =AVERAGE(B259:C259) -> 99.24
A261: V. Quotité d'investissement | B261: 9.87 | C261: 13.41 | D261: =AVERAGE(B261:C261) -> 11.64
A263: VI. Quotité de la charge financière | B263: 5.33 | C263: 6.92 | D263: =AVERAGE(B263:C263) -> 6.12
A265: VII. Endettement net en francs par habitant | B265: 231.31 | C265: 387.61 | D265: =B265-C265 -> -156.30
A267: VIII. Quotité d'autofinancement (capacité) | B267: 9.95 | C267: 6.88 | D267: =AVERAGE(B267:C267) -> 8.41
A269: IX. Quotité de la charge des intérêts nets | B269: -0.19 | C269: 0.27 | D269: =AVERAGE(B269:C269) -> 0.04
A271: X. Quotient de l'excédent du bilan | B271: 45.63 | C271: 44.58 | D271: =AVERAGE(B271:C271) -> 45.10
B276: 2021 | C276: 2020 | D276: Variation / moyenne
B277: Delémont | C277: Delémont | D277: =B277 -> Delémont
B278: 12,479 | C278: 12,618 | D278: =B278-C278 -> -139
A280: I. Quotient d'endettement net
A282: Endettement brut | B282: 142,369,124.54 | C282: 119,224,424.17 | D282: =B282-C282 -> 23,144,700.37
A284: Endettement net | B284: 95,429,893.10 | C284: 70,522,811.37 | D284: =B284-C284 -> 24,907,081.73
A286: Quotient d'endettement net | B286: 264.58 | C286: 205.94 | D286: =AVERAGE(B286:C286) -> 235.26
A289: II. Degré d'autofinancement
A291: Autofinancement | B291: 4,282,459.75 | C291: 1,468,726.70 | D291: =B291-C291 -> 2,813,733.05
A293: Degré d'autofinancement | B293: 35.27 | C293: 14.80 | D293: =AVERAGE(B293:C293) -> 25.03
A296: III. Quotité de la charge des intérêts | B296: 0.78 | C296: 0.58 | D296: =AVERAGE(B296:C296) -> 0.68
A298: IV. Dettes brutes par rapport aux revenus | B298: 145.45 | C298: 329.56 | D298: =AVERAGE(B298:C298) -> 237.51
A300: V. Quotité d'investissement | B300: 13.20 | C300: 14.35 | D300: =AVERAGE(B300:C300) -> 13.77
A302: VI. Quotité de la charge financière | B302: 6.53 | C302: 9.38 | D302: =AVERAGE(B302:C302) -> 7.96
A304: VII. Endettement net en francs par habitant | B304: 7,647.24 | C304: 5,589.06 | D304: =B304-C304 -> 2,058.17
A306: VIII. Quotité d'autofinancement (capacité) | B306: 4.38 | C306: 4.06 | D306: =AVERAGE(B306:C306) -> 4.22
A308: IX. Quotité de la charge des intérêts nets | B308: 1.04 | C308: -0.43 | D308: =AVERAGE(B308:C308) -> 0.30
A310: X. Quotient de l'excédent du bilan | B310: 10.10 | C310: 9.83 | D310: =AVERAGE(B310:C310) -> 9.97
B315: 2021 | C315: 2020 | D315: Variation / moyenne
B316: Develier | C316: Develier | D316: =B316 -> Develier
B317: 1,359 | C317: 1,371 | D317: =B317-C317 -> -12
A319: I. Quotient d'endettement net
A321: Endettement brut | B321: 6,715,713.52 | C321: 5,654,444.48 | D321: =B321-C321 -> 1,061,269.04
A323: Endettement net | B323: 3,276,821.49 | C323: 2,124,903.95 | D323: =B323-C323 -> 1,151,917.54
A325: Quotient d'endettement net | B325: 100.90 | C325: 66.63 | D325: =AVERAGE(B325:C325) -> 83.76
A328: II. Degré d'autofinancement
A330: Autofinancement | B330: 577,330.07 | C330: 45,022.17 | D330: =B330-C330 -> 532,307.90
A332: Degré d'autofinancement | B332: 72.51 | C332: 24.41 | D332: =AVERAGE(B332:C332) -> 48.46
A335: III. Quotité de la charge des intérêts | B335: 0.03 | C335: 0.36 | D335: =AVERAGE(B335:C335) -> 0.19
A337: IV. Dettes brutes par rapport aux revenus | B337: 87.49 | C337: 167.35 | D337: =AVERAGE(B337:C337) -> 127.42
A339: V. Quotité d'investissement | B339: 12.06 | C339: 3.76 | D339: =AVERAGE(B339:C339) -> 7.91
A341: VI. Quotité de la charge financière | B341: 3.11 | C341: 6.07 | D341: =AVERAGE(B341:C341) -> 4.59
A343: VII. Endettement net en francs par habitant | B343: 2,411.20 | C343: 1,549.89 | D343: =B343-C343 -> 861.31
A345: VIII. Quotité d'autofinancement (capacité) | B345: 7.52 | C345: 1.33 | D345: =AVERAGE(B345:C345) -> 4.43
A347: IX. Quotité de la charge des intérêts nets | B347: -4.08 | C347: 0.04 | D347: =AVERAGE(B347:C347) -> -2.02
A349: X. Quotient de l'excédent du bilan | B349: 33.20 | C349: 30.99 | D349: =AVERAGE(B349:C349) -> 32.10
B354: 2021 | C354: 2020 | D354: Variation / moyenne
B355: Ederswiler | C355: Ederswiler | D355: =B355 -> Ederswiler
B356: 117 | C356: 118 | D356: =B356-C356 -> -1
A358: I. Quotient d'endettement net
A360: Endettement brut | B360: 858,438.48 | C360: 0.00 | D360: =B360-C360 -> 858,438.48
A362: Endettement net | B362: 657,021.74 | C362: 0.00 | D362: =B362-C362 -> 657,021.74
A364: Quotient d'endettement net | B364: 220.25 | D364: =AVERAGE(B364:C364) -> 
A367: II. Degré d'autofinancement
A369: Autofinancement | B369: 51,065.55 | C369: 0.00 | D369: =B369-C369 -> 51,065.55
A371: Degré d'autofinancement | B371: 123.74 | C371: 0.00 | D371: =AVERAGE(B371:C371) -> 61.87
A374: III. Quotité de la charge des intérêts | B374: 1.46 | D374: =AVERAGE(B374:C374) -> 
A376: IV. Dettes brutes par rapport aux revenus | B376: 165.78 | D376: =AVERAGE(B376:C376) -> 
A378: V. Quotité d'investissement | B378: 7.98 | C378: 100.00 | D378: =AVERAGE(B378:C378) -> 53.99
A380: VI. Quotité de la charge financière | B380: 11.27 | D380: =AVERAGE(B380:C380) -> 
A382: VII. Endettement net en francs par habitant | B382: 5,615.57 | C382: 0.00 | D382: =B382-C382 -> 5,615.57
A384: VIII. Quotité d'autofinancement (capacité) | B384: 9.86 | D384: =AVERAGE(B384:C384) -> 
A386: IX. Quotité de la charge des intérêts nets | B386: -6.72 | D386: =AVERAGE(B386:C386) -> 
A388: X. Quotient de l'excédent du bilan | B388: 182.84 | D388: =AVERAGE(B388:C388) -> 
B393: 2021 | C393: 2020 | D393: Variation / moyenne
B394: Haute-Sorne | C394: Haute-Sorne | D394: =B394 -> Haute-Sorne
B395: 7,261 | C395: 7,167 | D395: =B395-C395 -> 94
A397: I. Quotient d'endettement net
A399: Endettement brut | B399: 44,141,873.29 | C399: 38,037,365.76 | D399: =B399-C399 -> 6,104,507.53
A401: Endettement net | B401: 27,130,950.97 | C401: 21,593,781.70 | D401: =B401-C401 -> 5,537,169.27
A403: Quotient d'endettement net | B403: 152.74 | C403: 136.50 | D403: =AVERAGE(B403:C403) -> 144.62
A406: II. Degré d'autofinancement
A408: Autofinancement | B408: 2,657,075.15 | C408: -408,267.07 | D408: =B408-C408 -> 3,065,342.22
A410: Degré d'autofinancement | B410: 92.12 | C410: -22.94 | D410: =AVERAGE(B410:C410) -> 34.59
A413: III. Quotité de la charge des intérêts | B413: 0.45 | C413: 0.89 | D413: =AVERAGE(B413:C413) -> 0.67
A415: IV. Dettes brutes par rapport aux revenus | B415: 161.84 | C415: 231.81 | D415: =AVERAGE(B415:C415) -> 196.82
A417: V. Quotité d'investissement | B417: 12.64 | C417: 8.78 | D417: =AVERAGE(B417:C417) -> 10.71
A419: VI. Quotité de la charge financière | B419: 4.96 | C419: 7.37 | D419: =AVERAGE(B419:C419) -> 6.17
A421: VII. Endettement net en francs par habitant | B421: 3,736.53 | C421: 3,012.95 | D421: =B421-C421 -> 723.59
A423: VIII. Quotité d'autofinancement (capacité) | B423: 9.74 | C423: -2.49 | D423: =AVERAGE(B423:C423) -> 3.63
A425: IX. Quotité de la charge des intérêts nets | B425: 0.40 | C425: 0.69 | D425: =AVERAGE(B425:C425) -> 0.54
A427: X. Quotient de l'excédent du bilan | B427: 1.85 | C427: -4.71 | D427: =AVERAGE(B427:C427) -> -1.43
B432: 2021 | C432: 2020 | D432: Variation / moyenne
... 755 more rows
